{"text_format":"1","workbook":"xlsx","n_sheets":6,"sheets":["Guidance","Pre Defined Duties","Proposal Submitted Duties","Sheet1","Source Data","Preparation Table"],"not_rendered":{"charts":0,"images":0,"macros":1,"external_links":0,"defined_names":4,"comments":0,"pivot_tables":0},"unopened":[],"bounds":{"document_bytes":16777216,"sheet_cells":100000,"rows_first":2000,"rows_last":500,"rows_between":2000,"halvings":0,"cell_chars":16384,"cell_head_chars":4096},"cells_cut":0,"cells_raw":0,"read":"whole","date_system":"1900"}

{"sheet":"Guidance","index":0,"n_rows":54,"n_cols":3,"rows_kept":54,"cut":false,"hidden":false,"merged":[]}
["Guidance to Mapping KSBs Against Duties in Additional Specialist Qualifications","Locations","Guidance"]
["Please complete one spreadsheet for each additional specialist qualification you are submitting"]
["Prior to completing any of the tabs in the additional specialist mapping template, please read the Content coverage and mapping criteria - what your application must demonstrate.",null,"Content coverage and mapping criteria"]
["Choosing Correct Tab"]
["If your qualification maps to one of the pre-defined specialist areas choose Pre Defined Duties Tab",null,"Guidance on Pre-Defined Specialist Areas"]
["If your qualification does not map to a pre-defined area and you submitted a proposal please choose the tab Proposal Agreed Duties. If you have not submitted a proposal please contact us on ifate.post16@education.gov.uk"]
["Completing Mapping Pre Defined Duties"]
["Please type the name of awarding body/applicant ","A3"]
["Please type your qualification title ","A5"]
["Please provide a summary of how the qualification intends to build on the linked standard to provide specialist competence in the occupational area:","B2"]
["Please select the standard(s) that your qualification maps to","A-D7"]
["Please select the pre-defined area from the drop down list","A11-34 "]
["Please select the pre-defined sub area from the drop down list","B11-34"]
["Please select the pre-defined duties in your qualification from the drop down list","C11-34","Duty or duties – the activities/competencies that will be carried out by a competent person in a specific occupation; requires the application of knowledge, skills and behaviours in the workplace. Duties always begin with a verb. "]
["If you have amended or removed the duty please list the amended duty or the removed duty ","D11-34"]
["Please explain why you have amended or removed a duty","E11-34"]
["Please add reference to the location in your specification and sample assessment materials where this duty maps to","F11-34"]
["List any additional duties as part of the re/development of your qualification (not covered by the pre-defined duties) to support the specialist competence in the area","A36-42","IfATE recognise that additional duties may be identified as in scope during the development process. Where not already agreed by IfATE (via the pre-defined duties), applicants will be required to provide suitable evidence within their employer evidence pack of the need for any newly identified duties within the specialist area. Applicants will be required to demonstrate coherent links between their content and the newly identified duties. "]
["Please explain why these duties have been included","E36-42","Please explain why additional duties have been included, above and beyond the pre-defined ones"]
["Please reference where the employer evidence is to support the duty/content","F36-42","Please provide reference to employer evidence to support the need for additional duties above and beyond the pre-defined ones"]
["Please list pre existing KSBs from your linked standard(s)","A45-59","If applicable"]
["Please select the standard the KSBs are linked to ","B45-59","If applicable"]
["Please reference the location in your specification and sample assessment materials where this KSB maps to","C45-59","If applicable"]
["Please say whether these KSBs are fully covered or partially covered","D45-59","Where an applicant seeks to cover directly, IfATE expect knowledge statements to be fully covered (suitably elaborated) in the content of the qualification. Where an applicant builds on a knowledge statement, providing additional specialist knowledge above and beyond that intended within the standard, IfATE will consider partial coverage appropriate. In some instances, applicants may wish to partially cover a knowledge statement to set context for further learning (for example, inclusion of some aspects of health and safety requirements, but not all). In this event IfATE will accept partial coverage of outcomes within the qualification content. \n\nWhere an applicant seeks to cover a skill statement directly, IfATE would usually expect a skill statement to be fully covered in the content of the qualification. Many skills can be obtained in a peer-to-peer setting, through simulation, scenario or other training devices without requiring an applied, clinical or specialist setting. Partial coverage of a skill statement will also be considered, taking into account factors such as access to specific technologies, training devices, setting, user groups. \n\nThere is no rationale required for behaviours as behaviours from the core occupational area will also have application within the specialist extension of the occupation."]
["Please explain why these KSBs have been included","E45-59","It is assumed that an individual undertaking an additional specialist qualification has already achieved competence within the core occupation. Therefore, we expect applicants to explain the inclusion of all content they map to knowledge and skills within the occupational standard as, in most cases, this would represent repeat learning/demonstration for a student and therefore should be avoided."]
["Please reference where the employer evidence is to support the duty /content","F45-59","IfATE expect to observe (within any rationale provided) that employers have indicated it essential to include, within the specialist offer, coverage of knowledge or skills present within the occupational standard. We expect that most of the knowledge or skills mapped content included by applicants will build upon the statement within the occupational standard.  You should assure IfATE that employers engaged through the process agree that the developed content is accurate, suitably covers the specialist duties and occupational KSBs, and is reflective of their needs."]
["Please list additional content that is above and beyond the duties and KSBs (for example, wider content that the sector values, that is not necessarily required for specialist competence, for example, content related to EDI, English, Maths, Digital)","A61","Additional content is made up of qualification outcomes that are not mapped to pre-agreed duties or KSBs within the built upon occupational standard. We may not approve a qualification if we have significant concerns about the amount of additional content and/or the relevance of additional content to the specialist area. A disproportionate amount of additional content may therefore impact the overall quality and/or credibility of the qualification with employers. We would therefore carefully consider our policy goals of improving quality and clarity in the technical education landscape, and our wider statutory duties when making an approval decision on qualifications containing significant amounts of additional content.\n\nWhere additional content relates to one of the following areas, IfATE will not require the content to be supported by employer evidence.  \n\nContent derived from an IfATE published framework (for example, Equity, Diversity and Inclusion (EDI) framework).\nEssential English competencies required for competent practice in the occupation. \nEssential maths competencies required for competent practice in the occupation.\nEssential digital competencies required for competent practice in the occupation."]
["Please summarise your additional content","B61"]
["Please add references to the location in your specification and sample assessment materials where this duty/content maps to","C61"]
["Please explain why this additional content has been included","E61"]
["Please reference where the employer evidence is to support the duty /content","F61","For all additional content, applicants should ensure they provide detail of employer validation for each addition within the content mapping template. Where the applicant wishes to rely upon more substantive evidence pieces within their employer evidence submission, the applicant should provide clear reference (within the mapping template) to relevant sections of their evidence submission to allow IfATE to complete its requisite checks. \n\nWhere additional content derives from an IfATE published framework (for example, Equity, Diversity and Inclusion (EDI) framework) applicants will not be required to provide additional employer evidence for its inclusion. Applicants should however ensure that it is clear within their submission which IfATE publication additional content relates to. Where relevant, applicants should link to any publications or frameworks which informed their inclusion of the additional content. "]
["Completing Mapping Proposal Submitted Duties"]
["Please type the name of awarding body/applicant ","A3"]
["Please type your qualification title ","A5"]
["Please provide a summary of how the qualification intends to build on the linked standard to provide specialist competence in the occupational area:","B2"]
["Please select the standard(s) that your qualification maps to","A-D7"]
["Please confirm that your qualifications builds upon the linked standard(s)","A9"]
["Please list the duties submitted in your proposal to IfATE","A11-20"]
["Please add references to the location in your specification and sample assessment materials where this duty maps to ","B11-20"]
["Please list any duties that were not included in your proposal that you have added as part of your development","A22-28","IfATE recognise that additional duties may be identified as in scope during the development process. Where not already submitted to IfATE (via the proposal stage), applicants will be required to provide suitable evidence within their employer evidence pack of the need for any newly identified duties within the specialist area. Applicants will be required (within the mapping spreadsheet) to demonstrate coherent links between their content and the newly identified duties. "]
["Please add references to the location in your specification and sample assessment materials where this duty maps to ","C22-28"]
["Please explain why these duties have been included","E22-28","Please explain why additional duties have been added since the proposal stage"]
["Please reference where the employer evidence is to support the duty /content","F22-28","Where pre-defined or agreed via the proposal stage, applicants can use IfATE pre-defined list and/or proposal stage response as evidence of demand for duties.  You should assure IfATE that employers engaged through the process agree that the developed content is accurate, suitably covers the specialist duties and occupational KSBs, and is reflective of their needs."]
["Please list pre existing KSBs from your linked standard(s)","A31-45"]
["Please select the standard the KSBs are linked to ","B31-45"]
["Please reference the location in your specification and sample assessment materials where this KSB maps to","C31-45"]
["Please say whether these KSBs are fully covered or partially covered","D31-45","Where an applicant seeks to cover directly, IfATE expect knowledge statements to be fully covered (suitably elaborated) in the content of the qualification. Where an applicant builds on a knowledge statement, providing additional specialist knowledge above and beyond that intended within the standard, IfATE will consider partial coverage appropriate. In some instances, applicants may wish to partially cover a knowledge statement to set context for further learning (for example, inclusion of some aspects of health and safety requirements, but not all). In this event IfATE will accept partial coverage of outcomes within the qualification content. \n\nWhere an applicant seeks to cover a skill statement directly, IfATE would usually expect a skill statement to be fully covered in the content of the qualification. Many skills can be obtained in a peer-to-peer setting, through simulation, scenario or other training devices without requiring an applied, clinical or specialist setting. Partial coverage of a skill statement will also be considered, taking into account factors such as access to specific technologies, training devices, setting, user groups. \n\nThere is no rationale required for behaviours as behaviours from the core occupational area will also have application within the specialist extension of the occupation."]
["Please explain why these KSBs have been included","E31-45","It is assumed that an individual undertaking an additional specialist qualification has already achieved competence within the core occupation. Therefore, we expect applicants to explain the inclusion of all content they map to knowledge and skills within the occupational standard as, in most cases, this would represent repeat learning/demonstration for a student and therefore should be avoided."]
["Please reference where the employer evidence is to support the duty /content","F31-45"," IfATE expect to observe (within any rationale provided) that employers have indicated it essential to include, within the specialist offer, coverage of knowledge or skills present within the occupational standard. We expect that most of the knowledge or skills mapped content included by applicants will build upon the statement within the occupational standard.  You should assure IfATE that employers engaged through the process agree that the developed content is accurate, suitably covers the specialist duties and occupational KSBs, and is reflective of their needs."]
["Please list additional content that is above and beyond the duties and KSBs (for example, wider content that the sector values, that is not necessarily required for specialist competence, for example, content related to EDI, English, Maths, Digital)","A47","Additional content is made up of qualification outcomes that are not mapped to pre-agreed duties or KSBs within the built upon occupational standard. We may not approve a qualification if we have significant concerns about the amount of additional content and/or the relevance of additional content to the specialist area. A disproportionate amount of additional content may therefore impact the overall quality and/or credibility of the qualification with employers. We would therefore carefully consider our policy goals of improving quality and clarity in the technical education landscape, and our wider statutory duties when making an approval decision on qualifications containing significant amounts of additional content."]
["Please summarise your additional content","B47"]
["Please add references to the location in your specification and sample assessment materials where this duty/content maps to","C47"]
["Please explain why this additional content has been included","E47"]
["Please reference where the employer evidence is to support the duty /content","F47","For all additional content, applicants should ensure they provide detail of employer validation for each addition within the content mapping template. Where the applicant wishes to rely upon more substantive evidence pieces within their employer evidence submission, the applicant should provide clear reference (within the mapping template) to relevant sections of their evidence submission to allow IfATE to complete its requisite checks. \n\nWhere additional content derives from an IfATE published framework (for example, Equity, Diversity and Inclusion (EDI) framework) applicants will not be required to provide additional employer evidence for its inclusion. Applicants should however ensure that it is clear within their submission which IfATE publication additional content relates to. Where relevant, applicants should link to any publications or frameworks which informed their inclusion of the additional content. "]

{"sheet":"Pre Defined Duties","index":1,"n_rows":60,"n_cols":8,"rows_kept":60,"cut":false,"hidden":false,"merged":[]}
["START HERE"]
["Awarding Body/Applicant:","Please provide a summary of how the qualification intends to build on the linked standard to provide specialist competence in the occupational area:"]
["Please type the name of awarding body/applicant here","Please type your summary here"]
["Qualification Title:"]
["Please type your qualification title here"]
["Linked standard(s)","Linked standard(s)","Linked standard(s)","Linked standard(s)"]
["Please Select","Please Select","Please Select","Please Select"]
[]
[]
["Select pre-defined area","Select Sub Area","Select Duties","If you have amended or removed the duty, please state amended or removed duty (or add N/A)","Include a rationale for the amendment/deletion here and reference to your employer evidence in your submission","Reference the location in your specification and sample assessment materials where this duty maps to (document title/page reference/section etc (need to be specific as possible))","FOR IFATE USE ONLY\nIM feedback","FOR IFATE USE ONLY\nPR feedback"]
["Please Select","Please select","Please select"]
["Please Select","Please select","Please select"]
["Please Select","Please select","Please select"]
["Please Select","Please select","Please select"]
["Please Select","Please select","Please select"]
["Please Select","Please select","Please select"]
["Please Select","Please select","Please select"]
["Please Select","Please select","Please select"]
["Please Select","Please select","Please select"]
["Please Select","Please select","Please select"]
["Please Select","Please select","Please select"]
["Please Select","Please select","Please select"]
["Please Select","Please select","Please select"]
["Please Select","Please select","Please select"]
["Please Select","Please select","Please select"]
["Please Select","Please select","Please select"]
["Please Select","Please select","Please select"]
["Please Select","Please select","Please select"]
["Please Select","Please select","Please select"]
["Please Select","Please select","Please select"]
["Please Select","Please select","Please select"]
["Please Select","Please select","Please select"]
["Please Select","Please select","Please select"]
["Please Select","Please select","Please select"]
["List any additional duties as part of the re/development of your qualification (not covered by the pre-defined duties) to support the specialist competence in the area",null,"Reference the location in your specification and sample assessment materials where this duty maps to (document title/page reference/section etc (need to be specific as possible))",null,"Rationale/justification for inclusion (no rationale required for behaviours as behaviours from the core occupational area will also have application within the specialist extension of the occupation)","Reference to employer evidence in your submission to support the inclusion of additional duties (document title/page reference/section etc)","FOR IFATE USE ONLY\nIM feedback","FOR IFATE USE ONLY\nPR feedback"]
[]
[]
[]
[]
[]
[]
[]
["We expect that most of the knowledge or skills mapped content included by applicants will build upon the statement within the occupational standard, therefore we do not expect there to be significant proportion of pre existing KSBS mapped in your Additional specialist qualification"]
["If the qualification covers pre existing Knowledge, Skills or Behaviours (KSBs) from the linked standard please list them below ","Select the relevant standard which contains the KSB","Reference the location in your specification and sample assessment materials where this KSB maps to (document title/page reference/section etc (need to be specific as possible)","Partially covered or fully covered by your content? (drop down)","Rationale/justification for inclusion (no rationale required for behaviours as behaviours from the core occupational area will also have application within the specialist extension of the occupation)","Reference to employer evidence in your submission to support your rationale (document title/page reference/section etc)","FOR IFATE USE ONLY\nIM feedback","FOR IFATE USE ONLY\nPR feedback"]
[null,"Please Select",null,"Please Select"]
[null,null,null,"Please Select"]
[null,null,null,"Please Select"]
[null,null,null,"Please Select"]
[null,null,null,"Please Select"]
[null,null,null,"Please Select"]
[null,null,null,"Please Select"]
[null,null,null,"Please Select"]
[null,null,null,"Please Select"]
[null,null,null,"Please Select"]
[null,null,null,"Please Select"]
[null,null,null,"Please Select"]
[null,null,null,"Please Select"]
[null,null,null,"Please Select"]
[null,null,null,"Please Select"]
["Does your qualification include any other additional content above and beyond the duties and KSBs (for example, wider content that the sector values, that is not necessarily required for specialist competence, for example, content related to EDI, English, Maths, Digital etc)","Summary of additional content","Reference the location in your specification and sample assessment materials (document title/page reference/section etc (need to be specific as possible))",null,"Rationale/justification for inclusion (Where additional content derives from an IfATE published framework (for example, Equity, Diversity and Inclusion (EDI) framework) applicants will not be required to provide additional employer evidence for its inclusion.\nApplicants should however ensure that it is clear within their submission which IfATE publication additional content relates to. Where relevant, applicants should link to any publications or frameworks which informed their inclusion of the additional content.)","Reference to employer evidence in your submission to support your rationale (document title/page reference/section etc)","FOR IFATE USE ONLY\nIM feedback","FOR IFATE USE ONLY\nPR feedback"]

{"sheet":"Proposal Submitted Duties","index":2,"n_rows":46,"n_cols":8,"rows_kept":46,"cut":false,"hidden":false,"merged":[]}
["START HERE"]
["Awarding Body/Applicant:","Please provide a summary of how the qualification intends to build on the linked standard to provide specialist competence in the occupational area:"]
["Please type the name of awarding body/applicant here","Please type your summary here"]
["Qualification Title:"]
["Please type your qualification title here"]
["Linked standard(s)","Linked standard(s)","Linked standard(s)","Linked standard(s)"]
["Please Select","Please Select","Please Select","Please Select"]
[]
[]
["List duties submitted at proposal stage for your qualification below","Reference the location in your specification and sample assessment materials where this duty maps to (document title/page reference/section etc (need to be specific as possible))","If you have amended or removed the duty since the proposal stage, please state amended or removed duty (or add N/A)",null,null,null,"FOR IFATE USE ONLY\nIM feedback","FOR IFATE USE ONLY\nPR feedback"]
[]
[]
[]
[]
[]
[]
[]
[]
[]
[]
["List any additional duties outside of those submitted at proposal stage",null,"Reference the location in your specification and sample assessment materials where this duty maps to (document title/page reference/section etc)",null,"Rationale/justification for inclusion","Reference to employer evidence in your submission to support the inclusion of additional duties  (document title/page reference/section etc)","FOR IFATE USE ONLY\nIM feedback","FOR IFATE USE ONLY\nPR feedback"]
[]
[]
[]
[]
[]
[]
[]
["We expect that most of the knowledge or skills mapped content included by applicants will build upon the statement within the occupational standard, therefore we do not expect there to be significant proportion of pre existing KSBS mapped in your Additional specialist qualification"]
["If the qualification covers pre existing Knowledge, Skills or Behaviours (KSBs) from the linked standard please list them below ","Select relevant standard (drop down menu of standards)","Reference the location in your specification and sample assessment materials where this KSB maps to (document title/page reference/section etc (need to be specific as possible))","Partially covered or fully covered by your content? (drop down)","Rationale/justification for inclusion (no rationale required for behaviours as behaviours from the core occupational area will also have application within the specialist extension of the occupation)","Reference to employer evidence in your submission to support your rationale (document title/page reference/section etc)","FOR IFATE USE ONLY\nIM feedback","FOR IFATE USE ONLY\nPR feedback"]
[null,null,null,"Please Select"]
[null,null,null,"Please Select"]
[null,null,null,"Please Select"]
[null,null,null,"Please Select"]
[null,null,null,"Please Select"]
[null,null,null,"Please Select"]
[null,null,null,"Please Select"]
[null,null,null,"Please Select"]
[null,null,null,"Please Select"]
[null,null,null,"Please Select"]
[null,null,null,"Please Select"]
[null,null,null,"Please Select"]
[null,null,null,"Please Select"]
[null,null,null,"Please Select"]
[null,null,null,"Please Select"]
["Does your qualification include additional content above and beyond the duties and KSBs (for example, wider content that the sector values, that is not necessarily required for specialist competence, for example, content related to EDI, English, Maths, Digital etc)","Summary of additional content","Reference the location in your specification and sample assessment materials (document title/page reference/section etc (need to be specific as possible))",null,"Rationale/justification for inclusion (Where additional content derives from an IfATE published framework (for example, Equity, Diversity and Inclusion (EDI) framework) applicants will not be required to provide additional employer evidence for its inclusion.\nApplicants should however ensure that it is clear within their submission which IfATE publication additional content relates to. Where relevant, applicants should link to any publications or frameworks which informed their inclusion of the additional content.)","Reference to employer evidence in your submission to support your rationale (document title/page reference/section etc)","FOR IFATE USE ONLY\nIM feedback","FOR IFATE USE ONLY\nPR feedback"]

{"sheet":"Sheet1","index":3,"n_rows":3,"n_cols":1,"rows_kept":3,"cut":false,"hidden":true,"merged":[]}
["Fully"]
["Partially"]
["None"]

{"sheet":"Source Data","index":4,"n_rows":529,"n_cols":5,"rows_kept":529,"cut":false,"hidden":true,"merged":[]}
["Conditional Format Data",null,"Pre Defined Area","Sub Area","Duty"]
[{"$f":"C2&D2","v":"Please SelectPlease select"},{"$f":"C2&D2&E2","v":"Please SelectPlease selectPlease select"},"Please Select","Please select","Please select"]
[{"$f":"C3&D3","v":"Adapting and Developing ExerciseAdapting exercise for antenatal and post-natal clients "},{"$f":"C3&D3&E3","v":"Adapting and Developing ExerciseAdapting exercise for antenatal and post-natal clients considers the physical changes which take place during the antenatal and post-natal periods"},"Adapting and Developing Exercise","Adapting exercise for antenatal and post-natal clients ","considers the physical changes which take place during the antenatal and post-natal periods"]
[{"$f":"C4&D4","v":"Adapting and Developing ExerciseAdapting exercise for antenatal and post-natal clients "},"Adapting and Developing ExerciseAdapting exercise for antenatal and post-natal clients promotes the benefits of exercise/physical activity for antenatal and post-natal women","Adapting and Developing Exercise","Adapting exercise for antenatal and post-natal clients ","promotes the benefits of exercise/physical activity for antenatal and post-natal women"]
["Adapting and Developing ExerciseAdapting exercise for antenatal and post-natal clients ","Adapting and Developing ExerciseAdapting exercise for antenatal and post-natal clients supports antenatal and post-natal clients’ exercise","Adapting and Developing Exercise","Adapting exercise for antenatal and post-natal clients ","supports antenatal and post-natal clients’ exercise"]
["Adapting and Developing ExerciseAdapting exercise for antenatal and post-natal clients ","Adapting and Developing ExerciseAdapting exercise for antenatal and post-natal clients considers contraindications to exercise for antenatal and post-natal clients","Adapting and Developing Exercise","Adapting exercise for antenatal and post-natal clients ","considers contraindications to exercise for antenatal and post-natal clients"]
["Adapting and Developing ExerciseAdapting exercise for antenatal and post-natal clients ","Adapting and Developing ExerciseAdapting exercise for antenatal and post-natal clients manages risks in antenatal and post-natal exercise sessions","Adapting and Developing Exercise","Adapting exercise for antenatal and post-natal clients ","manages risks in antenatal and post-natal exercise sessions"]
["Adapting and Developing ExerciseAdapting exercise for antenatal and post-natal clients ","Adapting and Developing ExerciseAdapting exercise for antenatal and post-natal clients promotes the nutritional requirements for antenatal and post-natal period","Adapting and Developing Exercise","Adapting exercise for antenatal and post-natal clients ","promotes the nutritional requirements for antenatal and post-natal period"]
["Adapting and Developing ExerciseAdapting exercise for antenatal and post-natal clients ","Adapting and Developing ExerciseAdapting exercise for antenatal and post-natal clients collects information to plan an exercise programme for antenatal and post-natal clients","Adapting and Developing Exercise","Adapting exercise for antenatal and post-natal clients ","collects information to plan an exercise programme for antenatal and post-natal clients"]
["Adapting and Developing ExerciseAdapting exercise for antenatal and post-natal clients ","Adapting and Developing ExerciseAdapting exercise for antenatal and post-natal clients screens antenatal and post-natal clients prior to planning an exercise programme","Adapting and Developing Exercise","Adapting exercise for antenatal and post-natal clients ","screens antenatal and post-natal clients prior to planning an exercise programme"]
["Adapting and Developing ExerciseAdapting exercise for antenatal and post-natal clients ","Adapting and Developing ExerciseAdapting exercise for antenatal and post-natal clients plans exercise programmes for antenatal and post-natal clients","Adapting and Developing Exercise","Adapting exercise for antenatal and post-natal clients ","plans exercise programmes for antenatal and post-natal clients"]
["Adapting and Developing ExerciseAdapting exercise for independently active older people","Adapting and Developing ExerciseAdapting exercise for independently active older peopleconsiders the ageing process and demographics when planning activities","Adapting and Developing Exercise","Adapting exercise for independently active older people","considers the ageing process and demographics when planning activities"]
["Adapting and Developing ExerciseAdapting exercise for independently active older people","Adapting and Developing ExerciseAdapting exercise for independently active older peoplemakes special considerations when programming and delivering exercise for independently active older people","Adapting and Developing Exercise","Adapting exercise for independently active older people","makes special considerations when programming and delivering exercise for independently active older people"]
["Adapting and Developing ExerciseAdapting exercise for independently active older people","Adapting and Developing ExerciseAdapting exercise for independently active older peoplepromotes the benefits of physical activity and exercise for  independently active, older people","Adapting and Developing Exercise","Adapting exercise for independently active older people","promotes the benefits of physical activity and exercise for  independently active, older people"]
["Adapting and Developing ExerciseAdapting exercise for independently active older people","Adapting and Developing ExerciseAdapting exercise for independently active older peoplesupports and motivates the independently active older people in exercise","Adapting and Developing Exercise","Adapting exercise for independently active older people","supports and motivates the independently active older people in exercise"]
["Adapting and Developing ExerciseAdapting exercise for independently active older people","Adapting and Developing ExerciseAdapting exercise for independently active older peopleplans and delivers safe exercise for independently active older people","Adapting and Developing Exercise","Adapting exercise for independently active older people","plans and delivers safe exercise for independently active older people"]
["Adapting and Developing ExerciseAdapting exercise for independently active older people","Adapting and Developing ExerciseAdapting exercise for independently active older peopleplans and conducts pre-exercise consultation with independently active older people","Adapting and Developing Exercise","Adapting exercise for independently active older people","plans and conducts pre-exercise consultation with independently active older people"]
["Adapting and Developing ExerciseAdapting exercise for independently active older people","Adapting and Developing ExerciseAdapting exercise for independently active older peopleplans and adapts exercise for independently active older people","Adapting and Developing Exercise","Adapting exercise for independently active older people","plans and adapts exercise for independently active older people"]
["Adapting and Developing ExerciseAdapting exercise for independently active older people","Adapting and Developing ExerciseAdapting exercise for independently active older peopleplans a progressive programme of exercise for independently active older people","Adapting and Developing Exercise","Adapting exercise for independently active older people","plans a progressive programme of exercise for independently active older people"]
["Adapting and Developing ExerciseAdapting exercise for independently active older people","Adapting and Developing ExerciseAdapting exercise for independently active older peoplemanages risks for independently active older people in exercise sessions","Adapting and Developing Exercise","Adapting exercise for independently active older people","manages risks for independently active older people in exercise sessions"]
["Coaching and InstructionInclusive Martial Arts","Coaching and InstructionInclusive Martial Artsworks safely and in accordance with all relevant legislation, guidelines, policies, procedures and protocols","Coaching and Instruction","Inclusive Martial Arts","works safely and in accordance with all relevant legislation, guidelines, policies, procedures and protocols"]
["Coaching and InstructionInclusive Martial Arts","Coaching and InstructionInclusive Martial Artsprepares participants for sports coaching sessions by assessing participants' readiness to engage with sessions and agreeing goals","Coaching and Instruction","Inclusive Martial Arts","prepares participants for sports coaching sessions by assessing participants' readiness to engage with sessions and agreeing goals"]
["Coaching and InstructionInclusive Martial Arts","Coaching and InstructionInclusive Martial Artsplans coaching sessions","Coaching and Instruction","Inclusive Martial Arts","plans coaching sessions"]
["Coaching and InstructionInclusive Martial Arts","Coaching and InstructionInclusive Martial Artsadapts and revises plans where necessary","Coaching and Instruction","Inclusive Martial Arts","adapts and revises plans where necessary"]
["Coaching and InstructionInclusive Martial Arts","Coaching and InstructionInclusive Martial Artsfacilitates skills acquisition, physical conditioning and mental skills development within the sports coaching programme.","Coaching and Instruction","Inclusive Martial Arts","facilitates skills acquisition, physical conditioning and mental skills development within the sports coaching programme."]
["Coaching and InstructionInclusive Martial Arts","Coaching and InstructionInclusive Martial Artsobserves and analyses the participants' performance and ensures all participants have the opportunity to take part in the planned programme","Coaching and Instruction","Inclusive Martial Arts","observes and analyses the participants' performance and ensures all participants have the opportunity to take part in the planned programme"]
["Coaching and InstructionInclusive Martial Arts","Coaching and InstructionInclusive Martial Artsmaintains regular communication with participants and adapts coaching and leadership style to meet the needs of the participants","Coaching and Instruction","Inclusive Martial Arts","maintains regular communication with participants and adapts coaching and leadership style to meet the needs of the participants"]
["Coaching and InstructionInclusive Martial Arts","Coaching and InstructionInclusive Martial Artsprovides participants with on-going feedback on their performance and ensures that participants have the information they require about future sessions","Coaching and Instruction","Inclusive Martial Arts","provides participants with on-going feedback on their performance and ensures that participants have the information they require about future sessions"]
["Coaching and InstructionInclusive Martial Arts","Coaching and InstructionInclusive Martial Artsadapts the sports coaching programme to ensure sessions meet the programme goals and objectives","Coaching and Instruction","Inclusive Martial Arts","adapts the sports coaching programme to ensure sessions meet the programme goals and objectives"]
["Coaching and InstructionInclusive Martial Arts","Coaching and InstructionInclusive Martial Artsaccesses specialist advice to support the development and welfare of the participants","Coaching and Instruction","Inclusive Martial Arts","accesses specialist advice to support the development and welfare of the participants"]
["Coaching and InstructionInclusive Martial Arts","Coaching and InstructionInclusive Martial Artsmanages the environment and equipment in accordance with all relevant legislation, guidelines, policies and procedures","Coaching and Instruction","Inclusive Martial Arts","manages the environment and equipment in accordance with all relevant legislation, guidelines, policies and procedures"]
["Coaching and InstructionInclusive Martial Arts","Coaching and InstructionInclusive Martial Artsdevelops players/participants technically, tactically, physically and psycho-socially","Coaching and Instruction","Inclusive Martial Arts","develops players/participants technically, tactically, physically and psycho-socially"]
["Coaching and InstructionInclusive Martial Arts","Coaching and InstructionInclusive Martial Artsorganises logistics for all training sessions, fixtures, tournaments and events.","Coaching and Instruction","Inclusive Martial Arts","organises logistics for all training sessions, fixtures, tournaments and events."]
["Coaching and InstructionInclusive Martial Arts","Coaching and InstructionInclusive Martial Artsmaintains responsibility for training / match equipment","Coaching and Instruction","Inclusive Martial Arts","maintains responsibility for training / match equipment"]
["Coaching and InstructionInclusive Martial Arts","Coaching and InstructionInclusive Martial Artsapplies understanding of the safeguarding policy, procedures and best practice guidelines.","Coaching and Instruction","Inclusive Martial Arts","applies understanding of the safeguarding policy, procedures and best practice guidelines."]
["Coaching and InstructionInclusive Martial Arts","Coaching and InstructionInclusive Martial Artsunderstands and demonstrates the importance of customer care and service delivery","Coaching and Instruction","Inclusive Martial Arts","understands and demonstrates the importance of customer care and service delivery"]
["Coaching and InstructionInclusive Martial Arts","Coaching and InstructionInclusive Martial Artsmonitors and reviews the sports coaching programme using the methods identified during the planning of the sports coaching programme","Coaching and Instruction","Inclusive Martial Arts","monitors and reviews the sports coaching programme using the methods identified during the planning of the sports coaching programme"]
["Coaching and InstructionInclusive Martial Arts","Coaching and InstructionInclusive Martial Artsanalyses the evidence from the monitoring and review process and adapts the programme goals","Coaching and Instruction","Inclusive Martial Arts","analyses the evidence from the monitoring and review process and adapts the programme goals"]
["Coaching and InstructionInclusive Martial Arts","Coaching and InstructionInclusive Martial Artsevaluates the sports coaching programme and provides feedback","Coaching and Instruction","Inclusive Martial Arts","evaluates the sports coaching programme and provides feedback"]
["Coaching and InstructionInclusive Martial Arts","Coaching and InstructionInclusive Martial Artscollates recommendations for improvement and completes a report on the findings","Coaching and Instruction","Inclusive Martial Arts","collates recommendations for improvement and completes a report on the findings"]
["Coaching and InstructionInclusive Martial Arts","Coaching and InstructionInclusive Martial Artsimplements recommendations for improvement to current and future sports coaching programmes","Coaching and Instruction","Inclusive Martial Arts","implements recommendations for improvement to current and future sports coaching programmes"]
["Coaching and InstructionInclusive Martial Arts","Coaching and InstructionInclusive Martial Artsevaluates own performance and the performance of others","Coaching and Instruction","Inclusive Martial Arts","evaluates own performance and the performance of others"]
["Coaching and InstructionInclusive Martial Arts","Coaching and InstructionInclusive Martial Artsidentifies development opportunities that will support current and future sports coaching programmes","Coaching and Instruction","Inclusive Martial Arts","identifies development opportunities that will support current and future sports coaching programmes"]
["Coaching and InstructionEquestrian coaching","Coaching and InstructionEquestrian coachingworks safely and in accordance with all relevant legislation, guidelines, policies, procedures and protocols","Coaching and Instruction","Equestrian coaching","works safely and in accordance with all relevant legislation, guidelines, policies, procedures and protocols"]
["Coaching and InstructionEquestrian coaching","Coaching and InstructionEquestrian coachingprepares participants for sports coaching sessions by assessing participants' readiness to engage with sessions and agreeing goals","Coaching and Instruction","Equestrian coaching","prepares participants for sports coaching sessions by assessing participants' readiness to engage with sessions and agreeing goals"]
["Coaching and InstructionEquestrian coaching","Coaching and InstructionEquestrian coachingplans coaching sessions","Coaching and Instruction","Equestrian coaching","plans coaching sessions"]
["Coaching and InstructionEquestrian coaching","Coaching and InstructionEquestrian coachingadapts and revises plans where necessary","Coaching and Instruction","Equestrian coaching","adapts and revises plans where necessary"]
["Coaching and InstructionEquestrian coaching","Coaching and InstructionEquestrian coachingfacilitates skills acquisition, physical conditioning and mental skills development within the sports coaching programme.","Coaching and Instruction","Equestrian coaching","facilitates skills acquisition, physical conditioning and mental skills development within the sports coaching programme."]
["Coaching and InstructionEquestrian coaching","Coaching and InstructionEquestrian coachingobserves and analyses the participants' performance and ensures all participants have the opportunity to take part in the planned programme","Coaching and Instruction","Equestrian coaching","observes and analyses the participants' performance and ensures all participants have the opportunity to take part in the planned programme"]
["Coaching and InstructionEquestrian coaching","Coaching and InstructionEquestrian coachingmaintains regular communication with participants and adapts coaching and leadership style to meet the needs of the participants","Coaching and Instruction","Equestrian coaching","maintains regular communication with participants and adapts coaching and leadership style to meet the needs of the participants"]
["Coaching and InstructionEquestrian coaching","Coaching and InstructionEquestrian coachingprovides participants with on-going feedback on their performance and ensures that participants have the information they require about future sessions","Coaching and Instruction","Equestrian coaching","provides participants with on-going feedback on their performance and ensures that participants have the information they require about future sessions"]
["Coaching and InstructionEquestrian coaching","Coaching and InstructionEquestrian coachingadapts the sports coaching programme to ensure sessions meet the programme goals and objectives","Coaching and Instruction","Equestrian coaching","adapts the sports coaching programme to ensure sessions meet the programme goals and objectives"]
["Coaching and InstructionEquestrian coaching","Coaching and InstructionEquestrian coachingaccesses specialist advice to support the development and welfare of the participants","Coaching and Instruction","Equestrian coaching","accesses specialist advice to support the development and welfare of the participants"]
["Coaching and InstructionEquestrian coaching","Coaching and InstructionEquestrian coachingmanages the environment and equipment in accordance with all relevant legislation, guidelines, policies and procedures","Coaching and Instruction","Equestrian coaching","manages the environment and equipment in accordance with all relevant legislation, guidelines, policies and procedures"]
["Coaching and InstructionEquestrian coaching","Coaching and InstructionEquestrian coachingdevelops players/participants technically, tactically, physically and psycho-socially","Coaching and Instruction","Equestrian coaching","develops players/participants technically, tactically, physically and psycho-socially"]
["Coaching and InstructionEquestrian coaching","Coaching and InstructionEquestrian coachingorganises logistics for all training sessions, fixtures, tournaments and events.","Coaching and Instruction","Equestrian coaching","organises logistics for all training sessions, fixtures, tournaments and events."]
["Coaching and InstructionEquestrian coaching","Coaching and InstructionEquestrian coachingmaintains responsibility for training / match equipment","Coaching and Instruction","Equestrian coaching","maintains responsibility for training / match equipment"]
["Coaching and InstructionEquestrian coaching","Coaching and InstructionEquestrian coachingapplies understanding of the safeguarding policy, procedures and best practice guidelines.","Coaching and Instruction","Equestrian coaching","applies understanding of the safeguarding policy, procedures and best practice guidelines."]
["Coaching and InstructionEquestrian coaching","Coaching and InstructionEquestrian coachingunderstands and demonstrates the importance of customer care and service delivery","Coaching and Instruction","Equestrian coaching","understands and demonstrates the importance of customer care and service delivery"]
["Coaching and InstructionEquestrian coaching","Coaching and InstructionEquestrian coachingmonitors and reviews the sports coaching programme using the methods identified during the planning of the sports coaching programme","Coaching and Instruction","Equestrian coaching","monitors and reviews the sports coaching programme using the methods identified during the planning of the sports coaching programme"]
["Coaching and InstructionEquestrian coaching","Coaching and InstructionEquestrian coachinganalyses the evidence from the monitoring and review process and adapts the programme goals","Coaching and Instruction","Equestrian coaching","analyses the evidence from the monitoring and review process and adapts the programme goals"]
["Coaching and InstructionEquestrian coaching","Coaching and InstructionEquestrian coachingevaluates the sports coaching programme and provides feedback","Coaching and Instruction","Equestrian coaching","evaluates the sports coaching programme and provides feedback"]
["Coaching and InstructionEquestrian coaching","Coaching and InstructionEquestrian coachingcollates recommendations for improvement and completes a report on the findings","Coaching and Instruction","Equestrian coaching","collates recommendations for improvement and completes a report on the findings"]
["Coaching and InstructionEquestrian coaching","Coaching and InstructionEquestrian coachingimplements recommendations for improvement to current and future sports coaching programmes","Coaching and Instruction","Equestrian coaching","implements recommendations for improvement to current and future sports coaching programmes"]
["Coaching and InstructionEquestrian coaching","Coaching and InstructionEquestrian coachingevaluates own performance and the performance of others","Coaching and Instruction","Equestrian coaching","evaluates own performance and the performance of others"]
["Coaching and InstructionEquestrian coaching","Coaching and InstructionEquestrian coachingidentifies development opportunities that will support current and future sports coaching programmes","Coaching and Instruction","Equestrian coaching","identifies development opportunities that will support current and future sports coaching programmes"]
["Coaching and InstructionCoaching track cycling",{"$f":"C67&D67&E67","v":"Coaching and InstructionCoaching track cyclingworks safely and in accordance with all relevant legislation, guidelines, policies, procedures and protocols"},"Coaching and Instruction","Coaching track cycling","works safely and in accordance with all relevant legislation, guidelines, policies, procedures and protocols"]
[{"$f":"C68&D68","v":"Coaching and InstructionCoaching track cycling"},"Coaching and InstructionCoaching track cyclingprepares participants for sports coaching sessions by assessing participants' readiness to engage with sessions and agreeing goals","Coaching and Instruction","Coaching track cycling","prepares participants for sports coaching sessions by assessing participants' readiness to engage with sessions and agreeing goals"]
["Coaching and InstructionCoaching track cycling","Coaching and InstructionCoaching track cyclingplans coaching sessions","Coaching and Instruction","Coaching track cycling","plans coaching sessions"]
["Coaching and InstructionCoaching track cycling","Coaching and InstructionCoaching track cyclingadapts and revises plans where necessary","Coaching and Instruction","Coaching track cycling","adapts and revises plans where necessary"]
["Coaching and InstructionCoaching track cycling","Coaching and InstructionCoaching track cyclingfacilitates skills acquisition, physical conditioning and mental skills development within the sports coaching programme.","Coaching and Instruction","Coaching track cycling","facilitates skills acquisition, physical conditioning and mental skills development within the sports coaching programme."]
["Coaching and InstructionCoaching track cycling","Coaching and InstructionCoaching track cyclingobserves and analyses the participants' performance and ensures all participants have the opportunity to take part in the planned programme","Coaching and Instruction","Coaching track cycling","observes and analyses the participants' performance and ensures all participants have the opportunity to take part in the planned programme"]
["Coaching and InstructionCoaching track cycling","Coaching and InstructionCoaching track cyclingmaintains regular communication with participants and adapts coaching and leadership style to meet the needs of the participants","Coaching and Instruction","Coaching track cycling","maintains regular communication with participants and adapts coaching and leadership style to meet the needs of the participants"]
["Coaching and InstructionCoaching track cycling","Coaching and InstructionCoaching track cyclingprovides participants with on-going feedback on their performance and ensures that participants have the information they require about future sessions","Coaching and Instruction","Coaching track cycling","provides participants with on-going feedback on their performance and ensures that participants have the information they require about future sessions"]
["Coaching and InstructionCoaching track cycling","Coaching and InstructionCoaching track cyclingadapts the sports coaching programme to ensure sessions meet the programme goals and objectives","Coaching and Instruction","Coaching track cycling","adapts the sports coaching programme to ensure sessions meet the programme goals and objectives"]
["Coaching and InstructionCoaching track cycling","Coaching and InstructionCoaching track cyclingaccesses specialist advice to support the development and welfare of the participants","Coaching and Instruction","Coaching track cycling","accesses specialist advice to support the development and welfare of the participants"]
["Coaching and InstructionCoaching track cycling","Coaching and InstructionCoaching track cyclingmanages the environment and equipment in accordance with all relevant legislation, guidelines, policies and procedures","Coaching and Instruction","Coaching track cycling","manages the environment and equipment in accordance with all relevant legislation, guidelines, policies and procedures"]
["Coaching and InstructionCoaching track cycling","Coaching and InstructionCoaching track cyclingdevelops players/participants technically, tactically, physically and psycho-socially","Coaching and Instruction","Coaching track cycling","develops players/participants technically, tactically, physically and psycho-socially"]
["Coaching and InstructionCoaching track cycling","Coaching and InstructionCoaching track cyclingorganises logistics for all training sessions, fixtures, tournaments and events.","Coaching and Instruction","Coaching track cycling","organises logistics for all training sessions, fixtures, tournaments and events."]
["Coaching and InstructionCoaching track cycling","Coaching and InstructionCoaching track cyclingmaintains responsibility for training / match equipment","Coaching and Instruction","Coaching track cycling","maintains responsibility for training / match equipment"]
["Coaching and InstructionCoaching track cycling","Coaching and InstructionCoaching track cyclingapplies understanding of the safeguarding policy, procedures and best practice guidelines.","Coaching and Instruction","Coaching track cycling","applies understanding of the safeguarding policy, procedures and best practice guidelines."]
["Coaching and InstructionCoaching track cycling","Coaching and InstructionCoaching track cyclingunderstands and demonstrates the importance of customer care and service delivery","Coaching and Instruction","Coaching track cycling","understands and demonstrates the importance of customer care and service delivery"]
["Coaching and InstructionCoaching track cycling","Coaching and InstructionCoaching track cyclingmonitors and reviews the sports coaching programme using the methods identified during the planning of the sports coaching programme","Coaching and Instruction","Coaching track cycling","monitors and reviews the sports coaching programme using the methods identified during the planning of the sports coaching programme"]
["Coaching and InstructionCoaching track cycling","Coaching and InstructionCoaching track cyclinganalyses the evidence from the monitoring and review process and adapts the programme goals","Coaching and Instruction","Coaching track cycling","analyses the evidence from the monitoring and review process and adapts the programme goals"]
["Coaching and InstructionCoaching track cycling","Coaching and InstructionCoaching track cyclingevaluates the sports coaching programme and provides feedback","Coaching and Instruction","Coaching track cycling","evaluates the sports coaching programme and provides feedback"]
["Coaching and InstructionCoaching track cycling","Coaching and InstructionCoaching track cyclingcollates recommendations for improvement and completes a report on the findings","Coaching and Instruction","Coaching track cycling","collates recommendations for improvement and completes a report on the findings"]
["Coaching and InstructionCoaching track cycling","Coaching and InstructionCoaching track cyclingimplements recommendations for improvement to current and future sports coaching programmes","Coaching and Instruction","Coaching track cycling","implements recommendations for improvement to current and future sports coaching programmes"]
["Coaching and InstructionCoaching track cycling","Coaching and InstructionCoaching track cyclingevaluates own performance and the performance of others","Coaching and Instruction","Coaching track cycling","evaluates own performance and the performance of others"]
["Coaching and InstructionCoaching track cycling","Coaching and InstructionCoaching track cyclingidentifies development opportunities that will support current and future sports coaching programmes","Coaching and Instruction","Coaching track cycling","identifies development opportunities that will support current and future sports coaching programmes"]
["Coaching and InstructionCoaching tennis","Coaching and InstructionCoaching tennisworks safely and in accordance with all relevant legislation, guidelines, policies, procedures and protocols","Coaching and Instruction","Coaching tennis","works safely and in accordance with all relevant legislation, guidelines, policies, procedures and protocols"]
["Coaching and InstructionCoaching tennis","Coaching and InstructionCoaching tennisprepares participants for sports coaching sessions by assessing participants' readiness to engage with sessions and agreeing goals","Coaching and Instruction","Coaching tennis","prepares participants for sports coaching sessions by assessing participants' readiness to engage with sessions and agreeing goals"]
["Coaching and InstructionCoaching tennis","Coaching and InstructionCoaching tennisplans coaching sessions","Coaching and Instruction","Coaching tennis","plans coaching sessions"]
["Coaching and InstructionCoaching tennis","Coaching and InstructionCoaching tennisadapts and revises plans where necessary","Coaching and Instruction","Coaching tennis","adapts and revises plans where necessary"]
["Coaching and InstructionCoaching tennis","Coaching and InstructionCoaching tennisFacilitates skills acquisition, physical conditioning and mental skills development within the sports coaching programme.","Coaching and Instruction","Coaching tennis","Facilitates skills acquisition, physical conditioning and mental skills development within the sports coaching programme."]
["Coaching and InstructionCoaching tennis","Coaching and InstructionCoaching tennisobserves and analyses the participants' performance and ensures all participants have the opportunity to take part in the planned programme","Coaching and Instruction","Coaching tennis","observes and analyses the participants' performance and ensures all participants have the opportunity to take part in the planned programme"]
["Coaching and InstructionCoaching tennis","Coaching and InstructionCoaching tennismaintains regular communication with participants and adapts coaching and leadership style to meet the needs of the participants","Coaching and Instruction","Coaching tennis","maintains regular communication with participants and adapts coaching and leadership style to meet the needs of the participants"]
["Coaching and InstructionCoaching tennis","Coaching and InstructionCoaching tennisprovides participants with on-going feedback on their performance and ensures that participants have the information they require about future sessions","Coaching and Instruction","Coaching tennis","provides participants with on-going feedback on their performance and ensures that participants have the information they require about future sessions"]
["Coaching and InstructionCoaching tennis","Coaching and InstructionCoaching tennisadapts the sports coaching programme to ensure sessions meet the programme goals and objectives","Coaching and Instruction","Coaching tennis","adapts the sports coaching programme to ensure sessions meet the programme goals and objectives"]
["Coaching and InstructionCoaching tennis","Coaching and InstructionCoaching tennisaccesses specialist advice to support the development and welfare of the participants","Coaching and Instruction","Coaching tennis","accesses specialist advice to support the development and welfare of the participants"]
["Coaching and InstructionCoaching tennis","Coaching and InstructionCoaching tennismanages the environment and equipment in accordance with all relevant legislation, guidelines, policies and procedures","Coaching and Instruction","Coaching tennis","manages the environment and equipment in accordance with all relevant legislation, guidelines, policies and procedures"]
["Coaching and InstructionCoaching tennis","Coaching and InstructionCoaching tennisdevelops players/participants technically, tactically, physically and psycho-socially","Coaching and Instruction","Coaching tennis","develops players/participants technically, tactically, physically and psycho-socially"]
["Coaching and InstructionCoaching tennis","Coaching and InstructionCoaching tennisorganises logistics for all training sessions, fixtures, tournaments and events.","Coaching and Instruction","Coaching tennis","organises logistics for all training sessions, fixtures, tournaments and events."]
["Coaching and InstructionCoaching tennis","Coaching and InstructionCoaching tennismaintains responsibility for training / match equipment","Coaching and Instruction","Coaching tennis","maintains responsibility for training / match equipment"]
["Coaching and InstructionCoaching tennis","Coaching and InstructionCoaching tennisapplies understanding of the safeguarding policy, procedures and best practice guidelines.","Coaching and Instruction","Coaching tennis","applies understanding of the safeguarding policy, procedures and best practice guidelines."]
["Coaching and InstructionCoaching tennis","Coaching and InstructionCoaching tennisunderstands and demonstrates the importance of customer care and service delivery","Coaching and Instruction","Coaching tennis","understands and demonstrates the importance of customer care and service delivery"]
["Coaching and InstructionCoaching tennis","Coaching and InstructionCoaching tennismonitors and reviews the sports coaching programme using the methods identified during the planning of the sports coaching programme","Coaching and Instruction","Coaching tennis","monitors and reviews the sports coaching programme using the methods identified during the planning of the sports coaching programme"]
["Coaching and InstructionCoaching tennis","Coaching and InstructionCoaching tennisanalyses the evidence from the monitoring and review process and adapts the programme goals","Coaching and Instruction","Coaching tennis","analyses the evidence from the monitoring and review process and adapts the programme goals"]
["Coaching and InstructionCoaching tennis","Coaching and InstructionCoaching tennisevaluates the sports coaching programme and provides feedback","Coaching and Instruction","Coaching tennis","evaluates the sports coaching programme and provides feedback"]
["Coaching and InstructionCoaching tennis","Coaching and InstructionCoaching tenniscollates recommendations for improvement and completes a report on the findings","Coaching and Instruction","Coaching tennis","collates recommendations for improvement and completes a report on the findings"]
["Coaching and InstructionCoaching tennis","Coaching and InstructionCoaching tennisimplements recommendations for improvement to current and future sports coaching programmes","Coaching and Instruction","Coaching tennis","implements recommendations for improvement to current and future sports coaching programmes"]
["Coaching and InstructionCoaching tennis","Coaching and InstructionCoaching tennisevaluates own performance and the performance of others","Coaching and Instruction","Coaching tennis","evaluates own performance and the performance of others"]
["Coaching and InstructionCoaching tennis","Coaching and InstructionCoaching tennisidentifies development opportunities that will support current and future sports coaching programmes","Coaching and Instruction","Coaching tennis","identifies development opportunities that will support current and future sports coaching programmes"]
["Coaching and InstructionCoaching Netball","Coaching and InstructionCoaching Netballworks safely and in accordance with all relevant legislation, guidelines, policies, procedures and protocols","Coaching and Instruction","Coaching Netball","works safely and in accordance with all relevant legislation, guidelines, policies, procedures and protocols"]
["Coaching and InstructionCoaching Netball","Coaching and InstructionCoaching Netballprepares participants for sports coaching sessions by assessing participants' readiness to engage with sessions and agreeing goals","Coaching and Instruction","Coaching Netball","prepares participants for sports coaching sessions by assessing participants' readiness to engage with sessions and agreeing goals"]
["Coaching and InstructionCoaching Netball","Coaching and InstructionCoaching Netballplans coaching sessions","Coaching and Instruction","Coaching Netball","plans coaching sessions"]
["Coaching and InstructionCoaching Netball","Coaching and InstructionCoaching Netballadapts and revises plans where necessary","Coaching and Instruction","Coaching Netball","adapts and revises plans where necessary"]
["Coaching and InstructionCoaching Netball","Coaching and InstructionCoaching NetballFacilitates skills acquisition, physical conditioning and mental skills development within the sports coaching programme.","Coaching and Instruction","Coaching Netball","Facilitates skills acquisition, physical conditioning and mental skills development within the sports coaching programme."]
["Coaching and InstructionCoaching Netball","Coaching and InstructionCoaching Netballobserves and analyses the participants' performance and ensures all participants have the opportunity to take part in the planned programme","Coaching and Instruction","Coaching Netball","observes and analyses the participants' performance and ensures all participants have the opportunity to take part in the planned programme"]
["Coaching and InstructionCoaching Netball","Coaching and InstructionCoaching Netballmaintains regular communication with participants and adapts coaching and leadership style to meet the needs of the participants","Coaching and Instruction","Coaching Netball","maintains regular communication with participants and adapts coaching and leadership style to meet the needs of the participants"]
["Coaching and InstructionCoaching Netball","Coaching and InstructionCoaching Netballprovides participants with on-going feedback on their performance and ensures that participants have the information they require about future sessions","Coaching and Instruction","Coaching Netball","provides participants with on-going feedback on their performance and ensures that participants have the information they require about future sessions"]
["Coaching and InstructionCoaching Netball","Coaching and InstructionCoaching Netballadapts the sports coaching programme to ensure sessions meet the programme goals and objectives","Coaching and Instruction","Coaching Netball","adapts the sports coaching programme to ensure sessions meet the programme goals and objectives"]
["Coaching and InstructionCoaching Netball","Coaching and InstructionCoaching Netballaccesses specialist advice to support the development and welfare of the participants","Coaching and Instruction","Coaching Netball","accesses specialist advice to support the development and welfare of the participants"]
["Coaching and InstructionCoaching Netball","Coaching and InstructionCoaching Netballmanages the environment and equipment in accordance with all relevant legislation, guidelines, policies and procedures","Coaching and Instruction","Coaching Netball","manages the environment and equipment in accordance with all relevant legislation, guidelines, policies and procedures"]
["Coaching and InstructionCoaching Netball","Coaching and InstructionCoaching Netballdevelops players/participants technically, tactically, physically and psycho-socially","Coaching and Instruction","Coaching Netball","develops players/participants technically, tactically, physically and psycho-socially"]
["Coaching and InstructionCoaching Netball","Coaching and InstructionCoaching Netballorganises logistics for all training sessions, fixtures, tournaments and events.","Coaching and Instruction","Coaching Netball","organises logistics for all training sessions, fixtures, tournaments and events."]
["Coaching and InstructionCoaching Netball","Coaching and InstructionCoaching Netballmaintains responsibility for training / match equipment","Coaching and Instruction","Coaching Netball","maintains responsibility for training / match equipment"]
["Coaching and InstructionCoaching Netball","Coaching and InstructionCoaching Netballapplies understanding of the safeguarding policy, procedures and best practice guidelines.","Coaching and Instruction","Coaching Netball","applies understanding of the safeguarding policy, procedures and best practice guidelines."]
["Coaching and InstructionCoaching Netball","Coaching and InstructionCoaching Netballunderstands and demonstrates the importance of customer care and service delivery","Coaching and Instruction","Coaching Netball","understands and demonstrates the importance of customer care and service delivery"]
["Coaching and InstructionCoaching Netball","Coaching and InstructionCoaching Netballmonitors and reviews the sports coaching programme using the methods identified during the planning of the sports coaching programme","Coaching and Instruction","Coaching Netball","monitors and reviews the sports coaching programme using the methods identified during the planning of the sports coaching programme"]
["Coaching and InstructionCoaching Netball","Coaching and InstructionCoaching Netballanalyses the evidence from the monitoring and review process and adapts the programme goals","Coaching and Instruction","Coaching Netball","analyses the evidence from the monitoring and review process and adapts the programme goals"]
["Coaching and InstructionCoaching Netball",{"$f":"C131&D131&E131","v":"Coaching and InstructionCoaching Netballevaluates the sports coaching programme and provides feedback"},"Coaching and Instruction","Coaching Netball","evaluates the sports coaching programme and provides feedback"]
[{"$f":"C132&D132","v":"Coaching and InstructionCoaching Netball"},"Coaching and InstructionCoaching Netballcollates recommendations for improvement and completes a report on the findings","Coaching and Instruction","Coaching Netball","collates recommendations for improvement and completes a report on the findings"]
["Coaching and InstructionCoaching Netball","Coaching and InstructionCoaching Netballimplements recommendations for improvement to current and future sports coaching programmes","Coaching and Instruction","Coaching Netball","implements recommendations for improvement to current and future sports coaching programmes"]
["Coaching and InstructionCoaching Netball","Coaching and InstructionCoaching Netballevaluates own performance and the performance of others","Coaching and Instruction","Coaching Netball","evaluates own performance and the performance of others"]
["Coaching and InstructionCoaching Netball","Coaching and InstructionCoaching Netballidentifies development opportunities that will support current and future sports coaching programmes","Coaching and Instruction","Coaching Netball","identifies development opportunities that will support current and future sports coaching programmes"]
["Medical ServicingVentilation equipment servicing","Medical ServicingVentilation equipment servicingassesses the medical servicing equipment for electrical safety in line with regulatory requirements","Medical Servicing","Ventilation equipment servicing","assesses the medical servicing equipment for electrical safety in line with regulatory requirements"]
["Medical ServicingVentilation equipment servicing","Medical ServicingVentilation equipment servicingapplies the principles of patient safety when assessing risk of electrical equipment connected to patients, considering the physiological effects of electricity on the body","Medical Servicing","Ventilation equipment servicing","applies the principles of patient safety when assessing risk of electrical equipment connected to patients, considering the physiological effects of electricity on the body"]
["Medical ServicingVentilation equipment servicing","Medical ServicingVentilation equipment servicingoperates medical servicing equipment whilst adhering to safe working procedures","Medical Servicing","Ventilation equipment servicing","operates medical servicing equipment whilst adhering to safe working procedures"]
["Medical ServicingVentilation equipment servicing","Medical ServicingVentilation equipment servicingapplies electrical safety testing procedures using statutory guidance and advisory documentation when repairing and maintaining medical servicing equipment","Medical Servicing","Ventilation equipment servicing","applies electrical safety testing procedures using statutory guidance and advisory documentation when repairing and maintaining medical servicing equipment"]
["Medical ServicingVentilation equipment servicing","Medical ServicingVentilation equipment servicingundertakes inspection, testing, fault finding and servicing of the relevant medical equipment in accordance with relevant legislation, standards and manufacturers information","Medical Servicing","Ventilation equipment servicing","undertakes inspection, testing, fault finding and servicing of the relevant medical equipment in accordance with relevant legislation, standards and manufacturers information"]
["Medical ServicingVentilation equipment servicing","Medical ServicingVentilation equipment servicinguses an electrical safety analyser correctly and safely to test the medical servicing equipment","Medical Servicing","Ventilation equipment servicing","uses an electrical safety analyser correctly and safely to test the medical servicing equipment"]
["Medical ServicingPhysiological monitoring and infusion equipment servicing","Medical ServicingPhysiological monitoring and infusion equipment servicingassesses the medical servicing equipment for electrical safety in line with regulatory requirements","Medical Servicing","Physiological monitoring and infusion equipment servicing","assesses the medical servicing equipment for electrical safety in line with regulatory requirements"]
["Medical ServicingPhysiological monitoring and infusion equipment servicing","Medical ServicingPhysiological monitoring and infusion equipment servicingapplies the principles of patient safety when assessing risk of electrical equipment connected to patients, considering the physiological effects of electricity on the body","Medical Servicing","Physiological monitoring and infusion equipment servicing","applies the principles of patient safety when assessing risk of electrical equipment connected to patients, considering the physiological effects of electricity on the body"]
["Medical ServicingPhysiological monitoring and infusion equipment servicing","Medical ServicingPhysiological monitoring and infusion equipment servicingoperates medical servicing equipment whilst adhering to safe working procedures","Medical Servicing","Physiological monitoring and infusion equipment servicing","operates medical servicing equipment whilst adhering to safe working procedures"]
["Medical ServicingPhysiological monitoring and infusion equipment servicing","Medical ServicingPhysiological monitoring and infusion equipment servicingapplies electrical safety testing procedures using statutory guidance and advisory documentation when repairing and maintaining medical servicing equipment","Medical Servicing","Physiological monitoring and infusion equipment servicing","applies electrical safety testing procedures using statutory guidance and advisory documentation when repairing and maintaining medical servicing equipment"]
["Medical ServicingPhysiological monitoring and infusion equipment servicing","Medical ServicingPhysiological monitoring and infusion equipment servicingundertakes inspection, testing, fault finding and servicing of the relevant medical equipment in accordance with relevant legislation, standards and manufacturers information","Medical Servicing","Physiological monitoring and infusion equipment servicing","undertakes inspection, testing, fault finding and servicing of the relevant medical equipment in accordance with relevant legislation, standards and manufacturers information"]
["Medical ServicingPhysiological monitoring and infusion equipment servicing","Medical ServicingPhysiological monitoring and infusion equipment servicinguses an electrical safety analyser correctly and safely to test the medical servicing equipment","Medical Servicing","Physiological monitoring and infusion equipment servicing","uses an electrical safety analyser correctly and safely to test the medical servicing equipment"]
["Medical ServicingPhysiological monitoring and infusion equipment servicing","Medical ServicingPhysiological monitoring and infusion equipment servicingdemonstrates principles of patient monitoring, diagnostics and infusion.","Medical Servicing","Physiological monitoring and infusion equipment servicing","demonstrates principles of patient monitoring, diagnostics and infusion."]
["Medical ServicingPhysiological monitoring and infusion equipment servicing","Medical ServicingPhysiological monitoring and infusion equipment servicingapplies appropriate techniques when operating physiological monitoring and infusion equipment","Medical Servicing","Physiological monitoring and infusion equipment servicing","applies appropriate techniques when operating physiological monitoring and infusion equipment"]
["Medical ServicingBio-medical equipment servicing","Medical ServicingBio-medical equipment servicingassesses the medical servicing equipment for electrical safety in line with regulatory requirements","Medical Servicing","Bio-medical equipment servicing","assesses the medical servicing equipment for electrical safety in line with regulatory requirements"]
["Medical ServicingBio-medical equipment servicing","Medical ServicingBio-medical equipment servicingapplies the principles of patient safety when assessing risk of electrical equipment connected to patients, considering the physiological effects of electricity on the body","Medical Servicing","Bio-medical equipment servicing","applies the principles of patient safety when assessing risk of electrical equipment connected to patients, considering the physiological effects of electricity on the body"]
["Medical ServicingBio-medical equipment servicing","Medical ServicingBio-medical equipment servicingoperates medical servicing equipment whilst adhering to safe working procedures","Medical Servicing","Bio-medical equipment servicing","operates medical servicing equipment whilst adhering to safe working procedures"]
["Medical ServicingBio-medical equipment servicing","Medical ServicingBio-medical equipment servicingapplies electrical safety testing procedures using statutory guidance and advisory documentation when repairing and maintaining medical servicing equipment","Medical Servicing","Bio-medical equipment servicing","applies electrical safety testing procedures using statutory guidance and advisory documentation when repairing and maintaining medical servicing equipment"]
["Medical ServicingBio-medical equipment servicing","Medical ServicingBio-medical equipment servicingundertakes inspection, testing, fault finding and servicing of the relevant medical equipment in accordance with relevant legislation, standards and manufacturers information","Medical Servicing","Bio-medical equipment servicing","undertakes inspection, testing, fault finding and servicing of the relevant medical equipment in accordance with relevant legislation, standards and manufacturers information"]
["Medical ServicingBio-medical equipment servicing","Medical ServicingBio-medical equipment servicinguses an electrical safety analyser correctly and safely to test the medical servicing equipment","Medical Servicing","Bio-medical equipment servicing","uses an electrical safety analyser correctly and safely to test the medical servicing equipment"]
["Medical ServicingMedical therapeutic equipment servicing","Medical ServicingMedical therapeutic equipment servicingassesses the medical servicing equipment for electrical safety in line with regulatory requirements","Medical Servicing","Medical therapeutic equipment servicing","assesses the medical servicing equipment for electrical safety in line with regulatory requirements"]
["Medical ServicingMedical therapeutic equipment servicing","Medical ServicingMedical therapeutic equipment servicingapplies the principles of patient safety when assessing risk of electrical equipment connected to patients, considering the physiological effects of electricity on the body","Medical Servicing","Medical therapeutic equipment servicing","applies the principles of patient safety when assessing risk of electrical equipment connected to patients, considering the physiological effects of electricity on the body"]
["Medical ServicingMedical therapeutic equipment servicing","Medical ServicingMedical therapeutic equipment servicingoperates medical servicing equipment whilst adhering to safe working procedures","Medical Servicing","Medical therapeutic equipment servicing","operates medical servicing equipment whilst adhering to safe working procedures"]
["Medical ServicingMedical therapeutic equipment servicing","Medical ServicingMedical therapeutic equipment servicingapplies electrical safety testing procedures using statutory guidance and advisory documentation when repairing and maintaining medical servicing equipment","Medical Servicing","Medical therapeutic equipment servicing","applies electrical safety testing procedures using statutory guidance and advisory documentation when repairing and maintaining medical servicing equipment"]
["Medical ServicingMedical therapeutic equipment servicing","Medical ServicingMedical therapeutic equipment servicingundertakes inspection, testing, fault finding and servicing of the relevant medical equipment in accordance with relevant legislation, standards and manufacturers information","Medical Servicing","Medical therapeutic equipment servicing","undertakes inspection, testing, fault finding and servicing of the relevant medical equipment in accordance with relevant legislation, standards and manufacturers information"]
["Medical ServicingMedical therapeutic equipment servicing","Medical ServicingMedical therapeutic equipment servicinguses an electrical safety analyser correctly and safely to test the medical servicing equipment","Medical Servicing","Medical therapeutic equipment servicing","uses an electrical safety analyser correctly and safely to test the medical servicing equipment"]
["Medical ServicingMedical therapeutic equipment servicing","Medical ServicingMedical therapeutic equipment servicingtests medical therapeutic equipment in relation to, therapeutic ultrasound, interferential therapy and shortwave therapeutic diathermy","Medical Servicing","Medical therapeutic equipment servicing","tests medical therapeutic equipment in relation to, therapeutic ultrasound, interferential therapy and shortwave therapeutic diathermy"]
["Medical ServicingMedical therapeutic equipment servicing","Medical ServicingMedical therapeutic equipment servicingapplies knowledge of the structure and function of the nervous and muscular systems, physiology of nerve and muscle tissue stimulation and the structure and function of the nervous and muscular systems","Medical Servicing","Medical therapeutic equipment servicing","applies knowledge of the structure and function of the nervous and muscular systems, physiology of nerve and muscle tissue stimulation and the structure and function of the nervous and muscular systems"]
["Medical ServicingMedical imaging equipment servicing","Medical ServicingMedical imaging equipment servicingassesses the medical servicing equipment for electrical safety in line with regulatory requirements","Medical Servicing","Medical imaging equipment servicing","assesses the medical servicing equipment for electrical safety in line with regulatory requirements"]
["Medical ServicingMedical imaging equipment servicing","Medical ServicingMedical imaging equipment servicingapplies the principles of patient safety when assessing risk of electrical equipment connected to patients, considering the physiological effects of electricity on the body","Medical Servicing","Medical imaging equipment servicing","applies the principles of patient safety when assessing risk of electrical equipment connected to patients, considering the physiological effects of electricity on the body"]
["Medical ServicingMedical imaging equipment servicing","Medical ServicingMedical imaging equipment servicingoperates medical servicing equipment whilst adhering to safe working procedures","Medical Servicing","Medical imaging equipment servicing","operates medical servicing equipment whilst adhering to safe working procedures"]
["Medical ServicingMedical imaging equipment servicing","Medical ServicingMedical imaging equipment servicingapplies electrical safety testing procedures using statutory guidance and advisory documentation when repairing and maintaining medical servicing equipment","Medical Servicing","Medical imaging equipment servicing","applies electrical safety testing procedures using statutory guidance and advisory documentation when repairing and maintaining medical servicing equipment"]
["Medical ServicingMedical imaging equipment servicing","Medical ServicingMedical imaging equipment servicingundertakes inspection, testing, fault finding and servicing of the relevant medical equipment in accordance with relevant legislation, standards and manufacturers information","Medical Servicing","Medical imaging equipment servicing","undertakes inspection, testing, fault finding and servicing of the relevant medical equipment in accordance with relevant legislation, standards and manufacturers information"]
["Medical ServicingMedical imaging equipment servicing","Medical ServicingMedical imaging equipment servicinguses an electrical safety analyser correctly and safely to test the medical servicing equipment","Medical Servicing","Medical imaging equipment servicing","uses an electrical safety analyser correctly and safely to test the medical servicing equipment"]
["Medical ServicingDental equipment servicing","Medical ServicingDental equipment servicingassesses the medical servicing equipment for electrical safety in line with regulatory requirements","Medical Servicing","Dental equipment servicing","assesses the medical servicing equipment for electrical safety in line with regulatory requirements"]
["Medical ServicingDental equipment servicing","Medical ServicingDental equipment servicingapplies the principles of patient safety when assessing risk of electrical equipment connected to patients, considering the physiological effects of electricity on the body","Medical Servicing","Dental equipment servicing","applies the principles of patient safety when assessing risk of electrical equipment connected to patients, considering the physiological effects of electricity on the body"]
["Medical ServicingDental equipment servicing","Medical ServicingDental equipment servicingoperates medical servicing equipment whilst adhering to safe working procedures","Medical Servicing","Dental equipment servicing","operates medical servicing equipment whilst adhering to safe working procedures"]
["Medical ServicingDental equipment servicing","Medical ServicingDental equipment servicingapplies electrical safety testing procedures using statutory guidance and advisory documentation when repairing and maintaining medical servicing equipment","Medical Servicing","Dental equipment servicing","applies electrical safety testing procedures using statutory guidance and advisory documentation when repairing and maintaining medical servicing equipment"]
["Medical ServicingDental equipment servicing","Medical ServicingDental equipment servicingundertakes inspection, testing, fault finding and servicing of the relevant medical equipment in accordance with relevant legislation, standards and manufacturers information","Medical Servicing","Dental equipment servicing","undertakes inspection, testing, fault finding and servicing of the relevant medical equipment in accordance with relevant legislation, standards and manufacturers information"]
["Medical ServicingDental equipment servicing","Medical ServicingDental equipment servicinguses an electrical safety analyser correctly and safely to test the medical servicing equipment","Medical Servicing","Dental equipment servicing","uses an electrical safety analyser correctly and safely to test the medical servicing equipment"]
["Medical ServicingCardio-vascular equipment servicing","Medical ServicingCardio-vascular equipment servicingassesses the medical servicing equipment for electrical safety in line with regulatory requirements","Medical Servicing","Cardio-vascular equipment servicing","assesses the medical servicing equipment for electrical safety in line with regulatory requirements"]
["Medical ServicingCardio-vascular equipment servicing","Medical ServicingCardio-vascular equipment servicingapplies the principles of patient safety when assessing risk of electrical equipment connected to patients, considering the physiological effects of electricity on the body","Medical Servicing","Cardio-vascular equipment servicing","applies the principles of patient safety when assessing risk of electrical equipment connected to patients, considering the physiological effects of electricity on the body"]
["Medical ServicingCardio-vascular equipment servicing","Medical ServicingCardio-vascular equipment servicingoperates medical servicing equipment whilst adhering to safe working procedures","Medical Servicing","Cardio-vascular equipment servicing","operates medical servicing equipment whilst adhering to safe working procedures"]
["Medical ServicingCardio-vascular equipment servicing","Medical ServicingCardio-vascular equipment servicingapplies electrical safety testing procedures using statutory guidance and advisory documentation when repairing and maintaining medical servicing equipment","Medical Servicing","Cardio-vascular equipment servicing","applies electrical safety testing procedures using statutory guidance and advisory documentation when repairing and maintaining medical servicing equipment"]
["Medical ServicingCardio-vascular equipment servicing","Medical ServicingCardio-vascular equipment servicingundertakes inspection, testing, fault finding and servicing of the relevant medical equipment in accordance with relevant legislation, standards and manufacturers information","Medical Servicing","Cardio-vascular equipment servicing","undertakes inspection, testing, fault finding and servicing of the relevant medical equipment in accordance with relevant legislation, standards and manufacturers information"]
["Medical ServicingCardio-vascular equipment servicing","Medical ServicingCardio-vascular equipment servicinguses an electrical safety analyser correctly and safely to test the medical servicing equipment","Medical Servicing","Cardio-vascular equipment servicing","uses an electrical safety analyser correctly and safely to test the medical servicing equipment"]
["Medical ServicingAnaesthetic equipment servicing","Medical ServicingAnaesthetic equipment servicingassesses the medical servicing equipment for electrical safety in line with regulatory requirements","Medical Servicing","Anaesthetic equipment servicing","assesses the medical servicing equipment for electrical safety in line with regulatory requirements"]
["Medical ServicingAnaesthetic equipment servicing","Medical ServicingAnaesthetic equipment servicingapplies the principles of patient safety when assessing risk of electrical equipment connected to patients, considering the physiological effects of electricity on the body","Medical Servicing","Anaesthetic equipment servicing","applies the principles of patient safety when assessing risk of electrical equipment connected to patients, considering the physiological effects of electricity on the body"]
["Medical ServicingAnaesthetic equipment servicing","Medical ServicingAnaesthetic equipment servicingoperates medical servicing equipment whilst adhering to safe working procedures","Medical Servicing","Anaesthetic equipment servicing","operates medical servicing equipment whilst adhering to safe working procedures"]
["Medical ServicingAnaesthetic equipment servicing","Medical ServicingAnaesthetic equipment servicingapplies electrical safety testing procedures using statutory guidance and advisory documentation when repairing and maintaining medical servicing equipment","Medical Servicing","Anaesthetic equipment servicing","applies electrical safety testing procedures using statutory guidance and advisory documentation when repairing and maintaining medical servicing equipment"]
["Medical ServicingAnaesthetic equipment servicing","Medical ServicingAnaesthetic equipment servicingundertakes inspection, testing, fault finding and servicing of the relevant medical equipment in accordance with relevant legislation, standards and manufacturers information","Medical Servicing","Anaesthetic equipment servicing","undertakes inspection, testing, fault finding and servicing of the relevant medical equipment in accordance with relevant legislation, standards and manufacturers information"]
["Medical ServicingAnaesthetic equipment servicing","Medical ServicingAnaesthetic equipment servicinguses an electrical safety analyser correctly and safely to test the medical servicing equipment","Medical Servicing","Anaesthetic equipment servicing","uses an electrical safety analyser correctly and safely to test the medical servicing equipment"]
["Medical ServicingAnaesthetic and ventilation equipment servicing","Medical ServicingAnaesthetic and ventilation equipment servicingassesses the medical servicing equipment for electrical safety in line with regulatory requirements","Medical Servicing","Anaesthetic and ventilation equipment servicing","assesses the medical servicing equipment for electrical safety in line with regulatory requirements"]
["Medical ServicingAnaesthetic and ventilation equipment servicing","Medical ServicingAnaesthetic and ventilation equipment servicingapplies the principles of patient safety when assessing risk of electrical equipment connected to patients, considering the physiological effects of electricity on the body","Medical Servicing","Anaesthetic and ventilation equipment servicing","applies the principles of patient safety when assessing risk of electrical equipment connected to patients, considering the physiological effects of electricity on the body"]
["Medical ServicingAnaesthetic and ventilation equipment servicing","Medical ServicingAnaesthetic and ventilation equipment servicingoperates medical servicing equipment whilst adhering to safe working procedures","Medical Servicing","Anaesthetic and ventilation equipment servicing","operates medical servicing equipment whilst adhering to safe working procedures"]
["Medical ServicingAnaesthetic and ventilation equipment servicing","Medical ServicingAnaesthetic and ventilation equipment servicingapplies electrical safety testing procedures using statutory guidance and advisory documentation when repairing and maintaining medical servicing equipment","Medical Servicing","Anaesthetic and ventilation equipment servicing","applies electrical safety testing procedures using statutory guidance and advisory documentation when repairing and maintaining medical servicing equipment"]
["Medical ServicingAnaesthetic and ventilation equipment servicing","Medical ServicingAnaesthetic and ventilation equipment servicingundertakes inspection, testing, fault finding and servicing of the relevant medical equipment in accordance with relevant legislation, standards and manufacturers information","Medical Servicing","Anaesthetic and ventilation equipment servicing","undertakes inspection, testing, fault finding and servicing of the relevant medical equipment in accordance with relevant legislation, standards and manufacturers information"]
["Medical ServicingAnaesthetic and ventilation equipment servicing","Medical ServicingAnaesthetic and ventilation equipment servicinguses an electrical safety analyser correctly and safely to test the medical servicing equipment","Medical Servicing","Anaesthetic and ventilation equipment servicing","uses an electrical safety analyser correctly and safely to test the medical servicing equipment"]
["Medical ServicingBio-medical equipment servicing","Medical ServicingBio-medical equipment servicingassesses the medical servicing equipment for electrical safety in line with regulatory requirements","Medical Servicing","Bio-medical equipment servicing","assesses the medical servicing equipment for electrical safety in line with regulatory requirements"]
["Medical ServicingBio-medical equipment servicing",{"$f":"C195&D195&E195","v":"Medical ServicingBio-medical equipment servicingapplies the principles of patient safety when assessing risk of electrical equipment connected to patients, considering the physiological effects of electricity on the body"},"Medical Servicing","Bio-medical equipment servicing","applies the principles of patient safety when assessing risk of electrical equipment connected to patients, considering the physiological effects of electricity on the body"]
[{"$f":"C196&D196","v":"Medical ServicingBio-medical equipment servicing"},"Medical ServicingBio-medical equipment servicingoperates medical servicing equipment whilst adhering to safe working procedures","Medical Servicing","Bio-medical equipment servicing","operates medical servicing equipment whilst adhering to safe working procedures"]
["Medical ServicingBio-medical equipment servicing","Medical ServicingBio-medical equipment servicingapplies electrical safety testing procedures using statutory guidance and advisory documentation when repairing and maintaining medical servicing equipment","Medical Servicing","Bio-medical equipment servicing","applies electrical safety testing procedures using statutory guidance and advisory documentation when repairing and maintaining medical servicing equipment"]
["Medical ServicingBio-medical equipment servicing","Medical ServicingBio-medical equipment servicingundertakes inspection, testing, fault finding and servicing of the relevant medical equipment in accordance with relevant legislation, standards and manufacturers information","Medical Servicing","Bio-medical equipment servicing","undertakes inspection, testing, fault finding and servicing of the relevant medical equipment in accordance with relevant legislation, standards and manufacturers information"]
["Medical ServicingBio-medical equipment servicing","Medical ServicingBio-medical equipment servicinguses an electrical safety analyser correctly and safely to test the medical servicing equipment","Medical Servicing","Bio-medical equipment servicing","uses an electrical safety analyser correctly and safely to test the medical servicing equipment"]
["Medical ServicingServicing patient beds, trollies and operating tables","Medical ServicingServicing patient beds, trollies and operating tablesassesses the medical servicing equipment for electrical safety in line with regulatory requirements","Medical Servicing","Servicing patient beds, trollies and operating tables","assesses the medical servicing equipment for electrical safety in line with regulatory requirements"]
["Medical ServicingServicing patient beds, trollies and operating tables","Medical ServicingServicing patient beds, trollies and operating tablesapplies the principles of patient safety when assessing risk of electrical equipment connected to patients, considering the physiological effects of electricity on the body","Medical Servicing","Servicing patient beds, trollies and operating tables","applies the principles of patient safety when assessing risk of electrical equipment connected to patients, considering the physiological effects of electricity on the body"]
["Medical ServicingServicing patient beds, trollies and operating tables","Medical ServicingServicing patient beds, trollies and operating tablesoperates medical servicing equipment whilst adhering to safe working procedures","Medical Servicing","Servicing patient beds, trollies and operating tables","operates medical servicing equipment whilst adhering to safe working procedures"]
["Medical ServicingServicing patient beds, trollies and operating tables","Medical ServicingServicing patient beds, trollies and operating tablesapplies electrical safety testing procedures using statutory guidance and advisory documentation when repairing and maintaining medical servicing equipment","Medical Servicing","Servicing patient beds, trollies and operating tables","applies electrical safety testing procedures using statutory guidance and advisory documentation when repairing and maintaining medical servicing equipment"]
["Medical ServicingServicing patient beds, trollies and operating tables","Medical ServicingServicing patient beds, trollies and operating tablesundertakes inspection, testing, fault finding and servicing of the relevant medical equipment in accordance with relevant legislation, standards and manufacturers information","Medical Servicing","Servicing patient beds, trollies and operating tables","undertakes inspection, testing, fault finding and servicing of the relevant medical equipment in accordance with relevant legislation, standards and manufacturers information"]
["Medical ServicingServicing patient beds, trollies and operating tables","Medical ServicingServicing patient beds, trollies and operating tablesuses an electrical safety analyser correctly and safely to test the medical servicing equipment","Medical Servicing","Servicing patient beds, trollies and operating tables","uses an electrical safety analyser correctly and safely to test the medical servicing equipment"]
["Medical ServicingServicing patient beds, trollies and operating tables","Medical ServicingServicing patient beds, trollies and operating tablescommunicates own role and the role of others under the Health and Safety at Work Act, and other current legislation relating to Health and Safety","Medical Servicing","Servicing patient beds, trollies and operating tables","communicates own role and the role of others under the Health and Safety at Work Act, and other current legislation relating to Health and Safety"]
["Medical ServicingServicing patient beds, trollies and operating tables","Medical ServicingServicing patient beds, trollies and operating tablesselects the types of protective clothing and equipment required","Medical Servicing","Servicing patient beds, trollies and operating tables","selects the types of protective clothing and equipment required"]
["Medical ServicingServicing patient beds, trollies and operating tables","Medical ServicingServicing patient beds, trollies and operating tablesadheres to health and safety, infection control and de-contamination requirements prior to accepting work into the work area for service and or repair","Medical Servicing","Servicing patient beds, trollies and operating tables","adheres to health and safety, infection control and de-contamination requirements prior to accepting work into the work area for service and or repair"]
["Motor Vehicle MaintenanceElectric/Hybrid Vehicle System repair and replacement (Linked to L3 Motor vehicle service and maintenance technician (light vehicle)","Motor Vehicle MaintenanceElectric/Hybrid Vehicle System repair and replacement (Linked to L3 Motor vehicle service and maintenance technician (light vehicle)applies understanding of health and safety requirements on an electric/ hybrid vehicle","Motor Vehicle Maintenance","Electric/Hybrid Vehicle System repair and replacement (Linked to L3 Motor vehicle service and maintenance technician (light vehicle)","applies understanding of health and safety requirements on an electric/ hybrid vehicle"]
["Motor Vehicle MaintenanceElectric/Hybrid Vehicle System repair and replacement (Linked to L3 Motor vehicle service and maintenance technician (light vehicle)","Motor Vehicle MaintenanceElectric/Hybrid Vehicle System repair and replacement (Linked to L3 Motor vehicle service and maintenance technician (light vehicle)accesses suitable sources of information to support electric/hybrid vehicle repair activities","Motor Vehicle Maintenance","Electric/Hybrid Vehicle System repair and replacement (Linked to L3 Motor vehicle service and maintenance technician (light vehicle)","accesses suitable sources of information to support electric/hybrid vehicle repair activities"]
["Motor Vehicle MaintenanceElectric/Hybrid Vehicle System repair and replacement (Linked to L3 Motor vehicle service and maintenance technician (light vehicle)","Motor Vehicle MaintenanceElectric/Hybrid Vehicle System repair and replacement (Linked to L3 Motor vehicle service and maintenance technician (light vehicle)uses correct tools and equipment in line with manufacturer’s requirements","Motor Vehicle Maintenance","Electric/Hybrid Vehicle System repair and replacement (Linked to L3 Motor vehicle service and maintenance technician (light vehicle)","uses correct tools and equipment in line with manufacturer’s requirements"]
["Motor Vehicle MaintenanceElectric/Hybrid Vehicle System repair and replacement (Linked to L3 Motor vehicle service and maintenance technician (light vehicle)","Motor Vehicle MaintenanceElectric/Hybrid Vehicle System repair and replacement (Linked to L3 Motor vehicle service and maintenance technician (light vehicle)plans correct procedures to repair high energy electrical system components","Motor Vehicle Maintenance","Electric/Hybrid Vehicle System repair and replacement (Linked to L3 Motor vehicle service and maintenance technician (light vehicle)","plans correct procedures to repair high energy electrical system components"]
["Motor Vehicle MaintenanceElectric/Hybrid Vehicle System repair and replacement (Linked to L3 Motor vehicle service and maintenance technician (light vehicle)","Motor Vehicle MaintenanceElectric/Hybrid Vehicle System repair and replacement (Linked to L3 Motor vehicle service and maintenance technician (light vehicle)carries out correct procedures to repair high energy electrical system components","Motor Vehicle Maintenance","Electric/Hybrid Vehicle System repair and replacement (Linked to L3 Motor vehicle service and maintenance technician (light vehicle)","carries out correct procedures to repair high energy electrical system components"]
["Motor Vehicle MaintenanceElectric/Hybrid Vehicle System repair and replacement (Linked to L3 Motor vehicle service and maintenance technician (light vehicle)","Motor Vehicle MaintenanceElectric/Hybrid Vehicle System repair and replacement (Linked to L3 Motor vehicle service and maintenance technician (light vehicle)completes accurate records and makes suitable recommendations","Motor Vehicle Maintenance","Electric/Hybrid Vehicle System repair and replacement (Linked to L3 Motor vehicle service and maintenance technician (light vehicle)","completes accurate records and makes suitable recommendations"]
["Motor Vehicle MaintenanceElectric/Hybrid Vehicle System repair and replacement (Linked to L3 Motor vehicle service and maintenance technician (light vehicle)","Motor Vehicle MaintenanceElectric/Hybrid Vehicle System repair and replacement (Linked to L3 Motor vehicle service and maintenance technician (light vehicle)applies understanding of electric principles when working with vehicles","Motor Vehicle Maintenance","Electric/Hybrid Vehicle System repair and replacement (Linked to L3 Motor vehicle service and maintenance technician (light vehicle)","applies understanding of electric principles when working with vehicles"]
["Motor Vehicle MaintenanceMotorsport vehicle maintenance and repair (Linked to L3 Motor vehicle service and maintenance technician (light vehicle)","Motor Vehicle MaintenanceMotorsport vehicle maintenance and repair (Linked to L3 Motor vehicle service and maintenance technician (light vehicle)outlines the correct personal and vehicle protection to be used within the motorsport environment","Motor Vehicle Maintenance","Motorsport vehicle maintenance and repair (Linked to L3 Motor vehicle service and maintenance technician (light vehicle)","outlines the correct personal and vehicle protection to be used within the motorsport environment"]
["Motor Vehicle MaintenanceMotorsport vehicle maintenance and repair (Linked to L3 Motor vehicle service and maintenance technician (light vehicle)","Motor Vehicle MaintenanceMotorsport vehicle maintenance and repair (Linked to L3 Motor vehicle service and maintenance technician (light vehicle)selects and uses the correct personal and vehicle protection equipment throughout activities","Motor Vehicle Maintenance","Motorsport vehicle maintenance and repair (Linked to L3 Motor vehicle service and maintenance technician (light vehicle)","selects and uses the correct personal and vehicle protection equipment throughout activities"]
["Motor Vehicle MaintenanceMotorsport vehicle maintenance and repair (Linked to L3 Motor vehicle service and maintenance technician (light vehicle)","Motor Vehicle MaintenanceMotorsport vehicle maintenance and repair (Linked to L3 Motor vehicle service and maintenance technician (light vehicle)understands and applies effective housekeeping procedures within the motorsport environment","Motor Vehicle Maintenance","Motorsport vehicle maintenance and repair (Linked to L3 Motor vehicle service and maintenance technician (light vehicle)","understands and applies effective housekeeping procedures within the motorsport environment"]
["Motor Vehicle MaintenanceMotorsport vehicle maintenance and repair (Linked to L3 Motor vehicle service and maintenance technician (light vehicle)","Motor Vehicle MaintenanceMotorsport vehicle maintenance and repair (Linked to L3 Motor vehicle service and maintenance technician (light vehicle)understands and applies current health and safety requirements in a motorsport environment","Motor Vehicle Maintenance","Motorsport vehicle maintenance and repair (Linked to L3 Motor vehicle service and maintenance technician (light vehicle)","understands and applies current health and safety requirements in a motorsport environment"]
["Motor Vehicle MaintenanceMotorsport vehicle maintenance and repair (Linked to L3 Motor vehicle service and maintenance technician (light vehicle)","Motor Vehicle MaintenanceMotorsport vehicle maintenance and repair (Linked to L3 Motor vehicle service and maintenance technician (light vehicle)identifies and carries out safe working practices within the scope of their role in the motorsport environment","Motor Vehicle Maintenance","Motorsport vehicle maintenance and repair (Linked to L3 Motor vehicle service and maintenance technician (light vehicle)","identifies and carries out safe working practices within the scope of their role in the motorsport environment"]
["Motor Vehicle MaintenanceMotorsport vehicle maintenance and repair (Linked to L3 Motor vehicle service and maintenance technician (light vehicle)","Motor Vehicle MaintenanceMotorsport vehicle maintenance and repair (Linked to L3 Motor vehicle service and maintenance technician (light vehicle)recognises risks and potential hazards in the motorsport environment","Motor Vehicle Maintenance","Motorsport vehicle maintenance and repair (Linked to L3 Motor vehicle service and maintenance technician (light vehicle)","recognises risks and potential hazards in the motorsport environment"]
["Motor Vehicle MaintenanceMotorsport vehicle maintenance and repair (Linked to L3 Motor vehicle service and maintenance technician (light vehicle)","Motor Vehicle MaintenanceMotorsport vehicle maintenance and repair (Linked to L3 Motor vehicle service and maintenance technician (light vehicle)demonstrates responsibility by ensuring the health and safety of themselves and others","Motor Vehicle Maintenance","Motorsport vehicle maintenance and repair (Linked to L3 Motor vehicle service and maintenance technician (light vehicle)","demonstrates responsibility by ensuring the health and safety of themselves and others"]
["Motor Vehicle MaintenanceMotorsport vehicle maintenance and repair (Linked to L3 Motor vehicle service and maintenance technician (light vehicle)","Motor Vehicle MaintenanceMotorsport vehicle maintenance and repair (Linked to L3 Motor vehicle service and maintenance technician (light vehicle)promotes the importance of maintaining health and safety welfare","Motor Vehicle Maintenance","Motorsport vehicle maintenance and repair (Linked to L3 Motor vehicle service and maintenance technician (light vehicle)","promotes the importance of maintaining health and safety welfare"]
["Motor Vehicle MaintenanceMOT test centre management (Linked to L3 Motor vehicle service and maintenance technician (light vehicle)","Motor Vehicle MaintenanceMOT test centre management (Linked to L3 Motor vehicle service and maintenance technician (light vehicle)showcases organisational responsibility by maintaining and complying with all health and safety requirements in vehicle test centres","Motor Vehicle Maintenance","MOT test centre management (Linked to L3 Motor vehicle service and maintenance technician (light vehicle)","showcases organisational responsibility by maintaining and complying with all health and safety requirements in vehicle test centres"]
["Motor Vehicle MaintenanceMOT test centre management (Linked to L3 Motor vehicle service and maintenance technician (light vehicle)","Motor Vehicle MaintenanceMOT test centre management (Linked to L3 Motor vehicle service and maintenance technician (light vehicle)prevents and manages customer service complaints in a vehicle test centre","Motor Vehicle Maintenance","MOT test centre management (Linked to L3 Motor vehicle service and maintenance technician (light vehicle)","prevents and manages customer service complaints in a vehicle test centre"]
["Motor Vehicle MaintenanceMOT test centre management (Linked to L3 Motor vehicle service and maintenance technician (light vehicle)","Motor Vehicle MaintenanceMOT test centre management (Linked to L3 Motor vehicle service and maintenance technician (light vehicle)monitors own and others’ CPD and performance ensuring it is up to date","Motor Vehicle Maintenance","MOT test centre management (Linked to L3 Motor vehicle service and maintenance technician (light vehicle)","monitors own and others’ CPD and performance ensuring it is up to date"]
["Motor Vehicle MaintenanceMOT test centre management (Linked to L3 Motor vehicle service and maintenance technician (light vehicle)","Motor Vehicle MaintenanceMOT test centre management (Linked to L3 Motor vehicle service and maintenance technician (light vehicle)prepares and reviews quality audits demonstrating an understanding of quality systems","Motor Vehicle Maintenance","MOT test centre management (Linked to L3 Motor vehicle service and maintenance technician (light vehicle)","prepares and reviews quality audits demonstrating an understanding of quality systems"]
["Motor Vehicle MaintenanceElectrical Vehicle Charging Installation: Domestic and Commercial setting (Linked to L3 Domestic Electrician","Motor Vehicle MaintenanceElectrical Vehicle Charging Installation: Domestic and Commercial setting (Linked to L3 Domestic Electricianapplies understanding of health and safety requirements in line with Wiring Regulations (BS7671) and other relevant legislation in a domestic and commercial setting","Motor Vehicle Maintenance","Electrical Vehicle Charging Installation: Domestic and Commercial setting (Linked to L3 Domestic Electrician","applies understanding of health and safety requirements in line with Wiring Regulations (BS7671) and other relevant legislation in a domestic and commercial setting"]
["Motor Vehicle MaintenanceElectrical Vehicle Charging Installation: Domestic and Commercial setting (Linked to L3 Domestic Electrician","Motor Vehicle MaintenanceElectrical Vehicle Charging Installation: Domestic and Commercial setting (Linked to L3 Domestic Electricianunderstands and carries out electrical installation practices including: \n•\trisk assessment \n•\tsupply\n•\tEarthing\n•\tplanning permission in accordance with relevant legislation \n•\texplosive atmospheres \n•\tprotection \n•\tlabelling \n•\tcontrol ","Motor Vehicle Maintenance","Electrical Vehicle Charging Installation: Domestic and Commercial setting (Linked to L3 Domestic Electrician","understands and carries out electrical installation practices including: \n•\trisk assessment \n•\tsupply\n•\tEarthing\n•\tplanning permission in accordance with relevant legislation \n•\texplosive atmospheres \n•\tprotection \n•\tlabelling \n•\tcontrol "]
["Motor Vehicle MaintenanceElectrical Vehicle Charging Installation: Domestic and Commercial setting (Linked to L3 Domestic Electrician","Motor Vehicle MaintenanceElectrical Vehicle Charging Installation: Domestic and Commercial setting (Linked to L3 Domestic Electricianuses correct tools and equipment in line with legal requirements","Motor Vehicle Maintenance","Electrical Vehicle Charging Installation: Domestic and Commercial setting (Linked to L3 Domestic Electrician","uses correct tools and equipment in line with legal requirements"]
["Motor Vehicle MaintenanceElectrical Vehicle Charging Installation: Domestic and Commercial setting (Linked to L3 Domestic Electrician","Motor Vehicle MaintenanceElectrical Vehicle Charging Installation: Domestic and Commercial setting (Linked to L3 Domestic Electriciancarries out inspection, testing, fault finding, maintenance, commissioning and handover of electric vehicle charging equipment","Motor Vehicle Maintenance","Electrical Vehicle Charging Installation: Domestic and Commercial setting (Linked to L3 Domestic Electrician","carries out inspection, testing, fault finding, maintenance, commissioning and handover of electric vehicle charging equipment"]
["Motor Vehicle MaintenanceElectrical Vehicle Charging Installation: Domestic and Commercial setting (Linked to L3 Domestic Electrician","Motor Vehicle MaintenanceElectrical Vehicle Charging Installation: Domestic and Commercial setting (Linked to L3 Domestic Electriciancompletes accurate records for notification to the Distribution Network Operator (DNO) and certification purposes","Motor Vehicle Maintenance","Electrical Vehicle Charging Installation: Domestic and Commercial setting (Linked to L3 Domestic Electrician","completes accurate records for notification to the Distribution Network Operator (DNO) and certification purposes"]
["Power, Electronics, Motors and DrivesNA","Power, Electronics, Motors and DrivesNAapplies knowledge of risk impact and analysis systems to both business practices and vehicle safety at business, project and activity levels","Power, Electronics, Motors and Drives","NA","applies knowledge of risk impact and analysis systems to both business practices and vehicle safety at business, project and activity levels"]
["Power, Electronics, Motors and DrivesNA","Power, Electronics, Motors and DrivesNAunderstands and applies manufacturing productivity tool requirements to diagnose faults with design and maintenance for service systems / tools","Power, Electronics, Motors and Drives","NA","understands and applies manufacturing productivity tool requirements to diagnose faults with design and maintenance for service systems / tools"]
["Power, Electronics, Motors and DrivesNA","Power, Electronics, Motors and DrivesNAanalyses manufacturing productivity systems data to understand efficiency levels","Power, Electronics, Motors and Drives","NA","analyses manufacturing productivity systems data to understand efficiency levels"]
["Power, Electronics, Motors and DrivesNA","Power, Electronics, Motors and DrivesNAcompiles reports on equipment effectiveness, maintenance systems/tools for statistical analysis","Power, Electronics, Motors and Drives","NA","compiles reports on equipment effectiveness, maintenance systems/tools for statistical analysis"]
["Power, Electronics, Motors and DrivesNA","Power, Electronics, Motors and DrivesNAdemonstrates how design for service systems/tools can increase productivity","Power, Electronics, Motors and Drives","NA","demonstrates how design for service systems/tools can increase productivity"]
["Power, Electronics, Motors and DrivesNA","Power, Electronics, Motors and DrivesNAoperates schedule-based servicing systems/ tools","Power, Electronics, Motors and Drives","NA","operates schedule-based servicing systems/ tools"]
["Power, Electronics, Motors and DrivesNA","Power, Electronics, Motors and DrivesNAdemonstrates understanding of the concepts of design for assembly, disassembly and recycling systems/ tools","Power, Electronics, Motors and Drives","NA","demonstrates understanding of the concepts of design for assembly, disassembly and recycling systems/ tools"]
["Power, Electronics, Motors and DrivesNA","Power, Electronics, Motors and DrivesNAmaintains end-of-life decommissioning systems design for end of life","Power, Electronics, Motors and Drives","NA","maintains end-of-life decommissioning systems design for end of life"]
["Power, Electronics, Motors and DrivesNA","Power, Electronics, Motors and DrivesNAmaintains sensors for through life monitoring systems / tools","Power, Electronics, Motors and Drives","NA","maintains sensors for through life monitoring systems / tools"]
["Power, Electronics, Motors and DrivesNA","Power, Electronics, Motors and DrivesNAuses / applies digital twin systems / tools","Power, Electronics, Motors and Drives","NA","uses / applies digital twin systems / tools"]
["Power, Electronics, Motors and DrivesNA","Power, Electronics, Motors and DrivesNAuses / applies relevant fundamental research including low Technology Readiness Level (TRL) technologies, market opportunities for emerging technologies, determine manufacturing and digital readiness levels","Power, Electronics, Motors and Drives","NA","uses / applies relevant fundamental research including low Technology Readiness Level (TRL) technologies, market opportunities for emerging technologies, determine manufacturing and digital readiness levels"]
["Power, Electronics, Motors and DrivesNA","Power, Electronics, Motors and DrivesNAuses and maintains IT security systems, hardware / software / firewall / user account management, standardisation and safety","Power, Electronics, Motors and Drives","NA","uses and maintains IT security systems, hardware / software / firewall / user account management, standardisation and safety"]
["Power, Electronics, Motors and DrivesNA","Power, Electronics, Motors and DrivesNAdefines, uses and maintains predictive maintenance (manufacturing) systems or tools","Power, Electronics, Motors and Drives","NA","defines, uses and maintains predictive maintenance (manufacturing) systems or tools"]
["Power, Electronics, Motors and DrivesNA","Power, Electronics, Motors and DrivesNAuses maintenance systems for high voltage maintenance and repair","Power, Electronics, Motors and Drives","NA","uses maintenance systems for high voltage maintenance and repair"]
["Power, Electronics, Motors and DrivesNA","Power, Electronics, Motors and DrivesNAmaintains, repairs and overhauls systems including warranty management, risk planning","Power, Electronics, Motors and Drives","NA","maintains, repairs and overhauls systems including warranty management, risk planning"]
["Power, Electronics, Motors and DrivesNA","Power, Electronics, Motors and DrivesNAuses manufacturing productivity systems, including lean production, 6 Sigma, Black-belt process improvement and optimisation production parts approval process, process failure mode effects analysis (PFMEA)","Power, Electronics, Motors and Drives","NA","uses manufacturing productivity systems, including lean production, 6 Sigma, Black-belt process improvement and optimisation production parts approval process, process failure mode effects analysis (PFMEA)"]
["Sports MassageNA","Sports MassageNAapplies knowledge of human anatomy and physiology to sports massage","Sports Massage","NA","applies knowledge of human anatomy and physiology to sports massage"]
["Sports MassageNA","Sports MassageNAcarries out a range of client consultations/assessments in sports massage","Sports Massage","NA","carries out a range of client consultations/assessments in sports massage"]
["Sports MassageNA","Sports MassageNAapplies professional practice and client care in sports massage","Sports Massage","NA","applies professional practice and client care in sports massage"]
["Sports MassageNA","Sports MassageNAcollects information relating to the client’s current condition and status (including the contraindications and identification of conditions that would be inappropriate for treatment by someone at this level of qualification)","Sports Massage","NA","collects information relating to the client’s current condition and status (including the contraindications and identification of conditions that would be inappropriate for treatment by someone at this level of qualification)"]
["Sports MassageNA","Sports MassageNAapplies knowledge of soft tissue dysfunction and distinguishes between acute injury and soft tissue dysfunction when assessing clients","Sports Massage","NA","applies knowledge of soft tissue dysfunction and distinguishes between acute injury and soft tissue dysfunction when assessing clients"]
["Sports MassageNA","Sports MassageNArecognises when to defer treatment or when to refer to a more qualified massage or healthcare professional","Sports Massage","NA","recognises when to defer treatment or when to refer to a more qualified massage or healthcare professional"]
["Sports MassageNA","Sports MassageNAselects appropriate massage techniques for a range of clients","Sports Massage","NA","selects appropriate massage techniques for a range of clients"]
["Sports MassageNA","Sports MassageNAapplies knowledge of sports massage techniques/treatments safely and effectively, understanding the potential effects and adhering to any relevant legal/statutory requirements","Sports Massage","NA","applies knowledge of sports massage techniques/treatments safely and effectively, understanding the potential effects and adhering to any relevant legal/statutory requirements"]
["Sports MassageNA","Sports MassageNAevaluates sports massage treatments and determines aftercare","Sports Massage","NA","evaluates sports massage treatments and determines aftercare"]
["Yoga and PilatesYoga ","Yoga and PilatesYoga applies knowledge of the relevant anatomy and physiology to Yoga and Pilates, including the following","Yoga and Pilates","Yoga ","applies knowledge of the relevant anatomy and physiology to Yoga and Pilates, including the following"]
["Yoga and PilatesYoga ",{"$f":"C259&D259&E259","v":"Yoga and PilatesYoga core stability, optimal posture and the causes of postural deviations and spinal conditions and the impact of exercise"},"Yoga and Pilates","Yoga ","core stability, optimal posture and the causes of postural deviations and spinal conditions and the impact of exercise"]
[{"$f":"C260&D260","v":"Yoga and PilatesYoga "},"Yoga and PilatesYoga structure and functions of the cardiorespiratory, endocrine and musculoskeletal system","Yoga and Pilates","Yoga ","structure and functions of the cardiorespiratory, endocrine and musculoskeletal system"]
["Yoga and PilatesYoga ","Yoga and PilatesYoga structure and function of the nervous system and effect of exercise on neuromuscular connections • classifications of energy systems and how they are utilised during exercise","Yoga and Pilates","Yoga ","structure and function of the nervous system and effect of exercise on neuromuscular connections • classifications of energy systems and how they are utilised during exercise"]
["Yoga and PilatesYoga ","Yoga and PilatesYoga classifications of energy systems and how they are utilised during exercise","Yoga and Pilates","Yoga ","classifications of energy systems and how they are utilised during exercise"]
["Yoga and PilatesYoga ","Yoga and PilatesYoga applies knowledge of health and safety requirements, emergency procedures and controlling risks in a fitness environment","Yoga and Pilates","Yoga ","applies knowledge of health and safety requirements, emergency procedures and controlling risks in a fitness environment"]
["Yoga and PilatesYoga ","Yoga and PilatesYoga applies knowledge of customer's needs and expectations to ongoing customer service Prepares and maintains the exercise environment","Yoga and Pilates","Yoga ","applies knowledge of customer's needs and expectations to ongoing customer service Prepares and maintains the exercise environment"]
["Yoga and PilatesYoga ","Yoga and PilatesYoga demonstrates professionalism in health and fitness sector","Yoga and Pilates","Yoga ","demonstrates professionalism in health and fitness sector"]
["Yoga and PilatesYoga ","Yoga and PilatesYoga applies knowledge of the operational and legislative procedures within an exercise and fitness facility","Yoga and Pilates","Yoga ","applies knowledge of the operational and legislative procedures within an exercise and fitness facility"]
["Yoga and PilatesYoga ","Yoga and PilatesYoga applies knowledge of, where appropriate, the safeguarding procedures for children and vulnerable adults","Yoga and Pilates","Yoga ","applies knowledge of, where appropriate, the safeguarding procedures for children and vulnerable adults"]
["Yoga and PilatesYoga ","Yoga and PilatesYoga considers the effects of exercise on the body and how to apply the principles and variables of fitness to an exercise programme","Yoga and Pilates","Yoga ","considers the effects of exercise on the body and how to apply the principles and variables of fitness to an exercise programme"]
["Yoga and PilatesYoga ","Yoga and PilatesYoga applies knowledge of exercise contraindications and key safety guidelines for individuals","Yoga and Pilates","Yoga ","applies knowledge of exercise contraindications and key safety guidelines for individuals"]
["Yoga and PilatesYoga ","Yoga and PilatesYoga supports clients to exercise/undertake physical activity and considers barriers to exercise including promoting a healthy lifestyle/eating","Yoga and Pilates","Yoga ","supports clients to exercise/undertake physical activity and considers barriers to exercise including promoting a healthy lifestyle/eating"]
["Yoga and PilatesYoga ","Yoga and PilatesYoga plans a group session for a range of participants within scope of practice and with the use of participant information","Yoga and Pilates","Yoga ","plans a group session for a range of participants within scope of practice and with the use of participant information"]
["Yoga and PilatesYoga ","Yoga and PilatesYoga prepares and delivers group exercise sessions","Yoga and Pilates","Yoga ","prepares and delivers group exercise sessions"]
["Yoga and PilatesYoga ","Yoga and PilatesYoga reflects on and evaluates provision of group exercise sessions","Yoga and Pilates","Yoga ","reflects on and evaluates provision of group exercise sessions"]
["Yoga and PilatesYoga ","Yoga and PilatesYoga understands and where appropriate applies the history, philosophy and fundamentals of yoga in practice, including: \n• raja yoga \n• theory and principles of meditation \n• mantra \n• hatha yoga \n• the yogic concept of prana and the pranic body \n• the theory and principle of pranayama \n• the theory of mudra \n• Bandhas \n• Kriyas \n• the purpose of Asana \n• the Counterpose \n• the health conditions encountered within a yoga class \n","Yoga and Pilates","Yoga ","understands and where appropriate applies the history, philosophy and fundamentals of yoga in practice, including: \n• raja yoga \n• theory and principles of meditation \n• mantra \n• hatha yoga \n• the yogic concept of prana and the pranic body \n• the theory and principle of pranayama \n• the theory of mudra \n• Bandhas \n• Kriyas \n• the purpose of Asana \n• the Counterpose \n• the health conditions encountered within a yoga class \n"]
["Yoga and PilatesYoga ","Yoga and PilatesYoga commences a personal yoga practice","Yoga and Pilates","Yoga ","commences a personal yoga practice"]
["Yoga and PilatesYoga ","Yoga and PilatesYoga designs and plans a progressive programme of yoga","Yoga and Pilates","Yoga ","designs and plans a progressive programme of yoga"]
["Yoga and PilatesYoga ","Yoga and PilatesYoga adapts yoga practices to meet the participants’ needs during a yoga session","Yoga and Pilates","Yoga ","adapts yoga practices to meet the participants’ needs during a yoga session"]
["Yoga and PilatesYoga ","Yoga and PilatesYoga reviews yoga sessions with participants","Yoga and Pilates","Yoga ","reviews yoga sessions with participants"]
["Yoga and PilatesYoga ","Yoga and PilatesYoga delivers yoga sessions and is able to reflect on yoga sessions","Yoga and Pilates","Yoga ","delivers yoga sessions and is able to reflect on yoga sessions"]
["Yoga and PilatesPilates","Yoga and PilatesPilatesapplies knowledge of the relevant anatomy and physiology to Yoga and Pilates, including the following","Yoga and Pilates","Pilates","applies knowledge of the relevant anatomy and physiology to Yoga and Pilates, including the following"]
["Yoga and PilatesPilates","Yoga and PilatesPilatescore stability, optimal posture and the causes of postural deviations and spinal conditions and the impact of exercise","Yoga and Pilates","Pilates","core stability, optimal posture and the causes of postural deviations and spinal conditions and the impact of exercise"]
["Yoga and PilatesPilates","Yoga and PilatesPilatesstructure and functions of the cardiorespiratory, endocrine and musculoskeletal system","Yoga and Pilates","Pilates","structure and functions of the cardiorespiratory, endocrine and musculoskeletal system"]
["Yoga and PilatesPilates","Yoga and PilatesPilatesstructure and function of the nervous system and effect of exercise on neuromuscular connections","Yoga and Pilates","Pilates","structure and function of the nervous system and effect of exercise on neuromuscular connections"]
[{"$f":"C284&D284","v":"Yoga and PilatesPilates"},{"$f":"C284&D284&E284","v":"Yoga and PilatesPilatesclassifications of energy systems and how they are utilised during exercise"},"Yoga and Pilates","Pilates","classifications of energy systems and how they are utilised during exercise"]
["Yoga and PilatesPilates","Yoga and PilatesPilatesapplies knowledge of health and safety requirements, emergency procedures and controlling risks in a fitness environment","Yoga and Pilates","Pilates","applies knowledge of health and safety requirements, emergency procedures and controlling risks in a fitness environment"]
["Yoga and PilatesPilates","Yoga and PilatesPilatesapplies knowledge of customer's needs and expectations to ongoing customer service","Yoga and Pilates","Pilates","applies knowledge of customer's needs and expectations to ongoing customer service"]
[{"$f":"C287&D287","v":"Yoga and PilatesPilates"},{"$f":"C287&D287&E287","v":"Yoga and PilatesPilatesPrepares and maintains the exercise environment"},"Yoga and Pilates","Pilates","Prepares and maintains the exercise environment"]
["Yoga and PilatesPilates","Yoga and PilatesPilatesdemonstrates professionalism in health and fitness sector","Yoga and Pilates","Pilates","demonstrates professionalism in health and fitness sector"]
["Yoga and PilatesPilates","Yoga and PilatesPilatesapplies knowledge of the operational and legislative procedures within an exercise and fitness facility","Yoga and Pilates","Pilates","applies knowledge of the operational and legislative procedures within an exercise and fitness facility"]
["Yoga and PilatesPilates","Yoga and PilatesPilatesapplies knowledge of, where appropriate, the safeguarding procedures for children and vulnerable adults","Yoga and Pilates","Pilates","applies knowledge of, where appropriate, the safeguarding procedures for children and vulnerable adults"]
["Yoga and PilatesPilates","Yoga and PilatesPilatesconsiders the effects of exercise on the body and how to apply the principles and variables of fitness to an exercise programme","Yoga and Pilates","Pilates","considers the effects of exercise on the body and how to apply the principles and variables of fitness to an exercise programme"]
["Yoga and PilatesPilates","Yoga and PilatesPilatesapplies knowledge of exercise contraindications and key safety guidelines for individuals","Yoga and Pilates","Pilates","applies knowledge of exercise contraindications and key safety guidelines for individuals"]
["Yoga and PilatesPilates","Yoga and PilatesPilatessupports clients to exercise/undertake physical activity and considers barriers to exercise including promoting a healthy lifestyle/eating","Yoga and Pilates","Pilates","supports clients to exercise/undertake physical activity and considers barriers to exercise including promoting a healthy lifestyle/eating"]
["Yoga and PilatesPilates","Yoga and PilatesPilatesplans a group session for a range of participants within scope of practice and with the use of participant information","Yoga and Pilates","Pilates","plans a group session for a range of participants within scope of practice and with the use of participant information"]
["Yoga and PilatesPilates","Yoga and PilatesPilatesprepares and delivers group exercise sessions","Yoga and Pilates","Pilates","prepares and delivers group exercise sessions"]
["Yoga and PilatesPilates","Yoga and PilatesPilatesreflects on and evaluates provision of group exercise sessions","Yoga and Pilates","Pilates","reflects on and evaluates provision of group exercise sessions"]
["Yoga and PilatesPilates","Yoga and PilatesPilatesapplies knowledge of and can teach the principles and fundamentals of Pilates including Pilates Matwork method and the different phases","Yoga and Pilates","Pilates","applies knowledge of and can teach the principles and fundamentals of Pilates including Pilates Matwork method and the different phases"]
["Yoga and PilatesPilates","Yoga and PilatesPilatesdesigns, plans and delivers a progressive programme of Pilates and for group sessions, including identifying and agreeing goals with clients","Yoga and Pilates","Pilates","designs, plans and delivers a progressive programme of Pilates and for group sessions, including identifying and agreeing goals with clients"]
["Yoga and PilatesPilates","Yoga and PilatesPilatesuses postural screening information in planning a Pilates teaching session","Yoga and Pilates","Pilates","uses postural screening information in planning a Pilates teaching session"]
["Yoga and PilatesPilates","Yoga and PilatesPilatesadapts exercises and communication to meet client needs during Pilates teaching sessions","Yoga and Pilates","Pilates","adapts exercises and communication to meet client needs during Pilates teaching sessions"]
["Yoga and PilatesPilates","Yoga and PilatesPilatesselects effective music for a Pilates teaching session","Yoga and Pilates","Pilates","selects effective music for a Pilates teaching session"]
["Yoga and PilatesPilates","Yoga and PilatesPilatesprepares for teaching a Pilates session","Yoga and Pilates","Pilates","prepares for teaching a Pilates session"]
["Yoga and PilatesPilates","Yoga and PilatesPilatesinstructs a Pilates teaching session","Yoga and Pilates","Pilates","instructs a Pilates teaching session"]
["Yoga and PilatesPilates","Yoga and PilatesPilatesevaluates client and teaching performance after delivering a Pilates session","Yoga and Pilates","Pilates","evaluates client and teaching performance after delivering a Pilates session"]
[]
[]
[]
[]
[]
[]
[]
[null,null,"Please Select"]
[null,null,"OCC1323 Advanced sports turf technician"]
[null,null,"OCC1359 Animal care and welfare manager"]
[null,null,"OCC0018 Crop technician"]
[null,null,"OCC0172 Farrier"]
[null,null,"OCC1321 Forest craftsperson"]
[null,null,"OCC0226 Landscape or horticulture supervisor"]
[null,null,"OCC0789 Keeper and aquarist"]
[null,null,"OCC0243 Land-based service engineering technician"]
[null,null,"OCC0938 Livestock unit technician"]
[null,null,"OCC0467 Poultry technician"]
[null,null,"OCC0343 Veterinary nurse"]
[null,null,"OCC0767 Water environment worker"]
[null,null,"OCC0070 Business administrator"]
[null,null,"OCC0239 HR support"]
[null,null,"OCC0193 Improvement technician"]
[null,null,"OCC0562 Learning and development practitioner"]
[null,null,"OCC0301 Leisure duty manager"]
[null,null,"OCC0664 Library, information and archive services assistant"]
[null,null,"OCC0708 Public sector compliance Investigator and officer"]
[null,null,"OCC0314 Public service operational delivery officer"]
[null,null,"OCC0320 Recruitment consultant"]
[null,null,"OCC0384 Team leader / supervisor"]
[null,null,"OCC0006 Lead adult care worker"]
[null,null,"OCC0906 Youth support worker"]
[null,null,"OCC0062 Building services engineering craftsperson"]
[null,null,"OCC0063 Building services design technician"]
[null,null,"OCC0091 Civil engineering technician"]
[null,null,"OCC0960 Construction support technician"]
[null,null,"OCC1334 Craft bricklayer"]
[null,null,"OCC0263 Advanced carpentry and joinery"]
[null,null,"OCC0802 Curtain wall installer"]
[null,null,"OCC0266 Digital engineering technician"]
[null,null,"OCC1017 Domestic electrician"]
[null,null,"OCC0433 Engineering construction erector rigger"]
[null,null,"OCC0162 Engineering construction pipefitter"]
[null,null,"OCC0170 Facilities management supervisor"]
[null,null,"OCC0614 Fall protection technician"]
[null,null,"OCC0189 Fire emergency and security systems technician"]
[null,null,"OCC0155 Gas engineering operative"]
[null,null,"OCC0491 Geospatial survey technician"]
[null,null,"OCC0052 Highways electrician or service operative"]
[null,null,"OCC0521 Industrial thermal insulation technician"]
[null,null,"OCC0152 Installation electrician and maintenance electrician"]
[null,null,"OCC0161 Junior energy manager"]
[null,null,"OCC0741 Landscape technician"]
[null,null,"OCC1020 Low carbon heating technician"]
[null,null,"OCC0414 Military engineering construction technician"]
[null,null,"OCC0303 Plumbing and domestic heating technician"]
[null,null,"OCC0322 Refrigeration air conditioning and heat pump engineering technician"]
[null,null,"OCC0464 Smart home technician"]
[null,null,"OCC0332 Surveying technician"]
[null,null,"OCC0336 Transport planning technician"]
[null,null,"OCC0221 Archaeological technician"]
[null,null,"OCC0476 Assistant puppet maker"]
[null,null,"OCC0639 Bespoke furniture maker"]
[null,null,"OCC0328 Bespoke saddler"]
[null,null,"OCC0378 Blacksmith"]
[null,null,"OCC0424 Broadcast and media systems technical operator"]
[null,null,"OCC0900 Camera prep technician"]
[null,null,"OCC0447 Clock maker"]
[null,null,"OCC0105 Junior content producer"]
[null,null,"OCC0783 Costume technician - stage and screen"]
[null,null,"OCC1297 Creative industries production technician"]
[null,null,"OCC0396 Cultural learning and participation officer"]
[null,null,"OCC0173 Fashion studio assistant"]
[null,null,"OCC0846 Garment maker"]
[null,null,"OCC0918 Hair, wigs, make-up and prosthetics technician"]
[null,null,"OCC0439 Jewellery, silversmithing, and allied trades professional"]
[null,null,"OCC0925 Junior advertising creative"]
[null,null,"OCC0559 Museums and galleries technician"]
[null,null,"OCC0382 Organ builder"]
[null,null,"OCC0506 Photographic assistant"]
[null,null,"OCC0341 Broadcast production assistant"]
[null,null,"OCC0174 Props technician"]
[null,null,"OCC0532 Publishing assistant"]
[null,null,"OCC0916 Scenic artist"]
[null,null,"OCC0383 Spectacle maker"]
[null,null,"OCC0395 Watchmaker"]
[null,null,"OCC0865 Cyber security technician"]
[null,null,"OCC0795 Data technician"]
[null,null,"OCC0120 Digital support technician"]
[null,null,"OCC0973 Information communications technician"]
[null,null,"OCC0505 IT solutions technician"]
[null,null,"OCC0485 Network cable installer"]
[null,null,"OCC0757 Radio network technician"]
[null,null,"OCC0128 Software development technician"]
[null,null,"OCC0135 Early years educator"]
[null,null,"OCC0666 Education technician (he assistant technician and simulation-based technician)"]
[null,null,"OCC1380 Learning and skills assessor"]
[null,null,"OCC0454 Teaching assistant"]
[null,null,"OCC0352 Accident repair technician"]
[null,null,"OCC0655 Advanced furniture CNC technician"]
[null,null,"OCC0656 Advanced upholsterer"]
[null,null,"OCC0031 Automotive glazing technician"]
[null,null,"OCC1338 Battery manufacturing technician"]
[null,null,"OCC0059 Boatbuilder"]
[null,null,"OCC0067 Bus and coach engineering technician"]
[null,null,"OCC0791 Commercial catering equipment technician"]
[null,null,"OCC0094 Composites technician"]
[null,null,"OCC0817 Compressed air and vacuum technician"]
[null,null,"OCC0752 Drinks dispense technician"]
[null,null,"OCC0150 Electrical, electronic product service and installation engineer"]
[null,null,"OCC0164 Engineering design and draughtsperson"]
[null,null,"OCC0432 Engineering fitter"]
[null,null,"OCC0457 Engineering technician"]
[null,null,"OCC0541 Fashion and textiles pattern cutter"]
[null,null,"OCC0654 Fitted furniture design technician"]
[null,null,"OCC0195 Food and drink maintenance engineer"]
[null,null,"OCC0196 Food and drink advanced process operator"]
[null,null,"OCC0205 Gas network craftsperson"]
[null,null,"OCC0950 Healthcare engineering specialist technician"]
[null,null,"OCC0068 Heavy vehicle service and maintenance technician"]
[null,null,"OCC0571 Heritage engineering technician"]
[null,null,"OCC0910 Knitted product manufacturing technician"]
[null,null,"OCC0252 Lift and escalator electromechanic"]
[null,null,"OCC0387 Lift truck and powered access engineering technician"]
[null,null,"OCC0872 Lifting equipment technician"]
[null,null,"OCC1305 Machining technician"]
[null,null,"OCC0154 Maintenance and operations engineering technician"]
[null,null,"OCC0808 Marine electrician"]
[null,null,"OCC0364 Marine engineer"]
[null,null,"OCC0566 Metal casting, foundry and patternmaking technician"]
[null,null,"OCC0607 Metal fabricator"]
[null,null,"OCC1327 Mobile transport refrigeration technician"]
[null,null,"OCC0033 Motor vehicle service and maintenance technician (light vehicle)"]
[null,null,"OCC0376 Motorcycle technician (repair and maintenance)"]
[null,null,"OCC0793 New furniture product developer"]
[null,null,"OCC0288 Non-destructive testing engineering technician"]
[null,null,"OCC0851 Pipe welder"]
[null,null,"OCC0852 Plate welder"]
[null,null,"OCC1328 Polymer processing technician"]
[null,null,"OCC1332 Power industry distribution cable jointer"]
[null,null,"OCC1330 Power industry overhead linesperson"]
[null,null,"OCC1331 Power industry substation fitter"]
[null,null,"OCC0156 Power network craftsperson"]
[null,null,"OCC0309 Print technician"]
[null,null,"OCC1407 Process industry manufacturing technician"]
[null,null,"OCC0163 Project controls technician"]
[null,null,"OCC0318 Rail engineering technician"]
[null,null,"OCC0315 Railway engineering design technician"]
[null,null,"OCC0249 Science industry maintenance technician"]
[null,null,"OCC0250 Science manufacturing technician"]
[null,null,"OCC0824 Signage technician"]
[null,null,"OCC0963 Surface finisher"]
[null,null,"OCC0015 Survival equipment fitter"]
[null,null,"OCC0159 Utilities engineering technician"]
[null,null,"OCC0405 Vehicle damage mechanical, electrical and trim (MET) technician"]
[null,null,"OCC0448 Vehicle damage paint technician"]
[null,null,"OCC0403 Vehicle damage panel technician"]
[null,null,"OCC1292 Water industry network technician"]
[null,null,"OCC1291 Water industry treatment process technician"]
[null,null,"OCC0453 Water treatment technician"]
[null,null,"OCC0627 Ambulance support worker (emergency, urgent and non-urgent)"]
[null,null,"OCC0058 Animal technologist"]
[null,null,"OCC0535 Clinical coder"]
[null,null,"OCC0958 Community health and wellbeing worker"]
[null,null,"OCC0093 Community sport and health officer"]
[null,null,"OCC0113 Dental nurse"]
[null,null,"OCC0198 Food technologist"]
[null,null,"OCC0248 Laboratory technician"]
[null,null,"OCC0282 Metrology technician"]
[null,null,"OCC0889 Mortuary technician"]
[null,null,"OCC1377 Optical assistant 2022"]
[null,null,"OCC0479 Outdoor activity instructor"]
[null,null,"OCC0896 Peer worker"]
[null,null,"OCC0302 Personal trainer"]
[null,null,"OCC0300 Pharmacy technician (integrated)"]
[null,null,"OCC0632 Prosthetic and orthotic technician"]
[null,null,"OCC0217 Senior healthcare support worker"]
[null,null,"OCC0524 Sporting excellence professional"]
[null,null,"OCC0175 Advanced credit controller and debt collection specialist"]
[null,null,"OCC0002 Assistant accountant"]
[null,null,"OCC0362 Compliance and risk officer"]
[null,null,"OCC0766 Debt adviser"]
[null,null,"OCC0177 Financial services administrator"]
[null,null,"OCC0240 Insurance practitioner"]
[null,null,"OCC0181 Investment operations technician"]
[null,null,"OCC0182 Mortgage adviser"]
[null,null,"OCC0474 Motor finance specialist"]
[null,null,"OCC0245 Paralegal"]
[null,null,"OCC0073 Payroll administrator"]
[null,null,"OCC0187 Workplace pensions (administrator or consultant)"]
[null,null,"OCC0185 Senior financial services customer adviser"]
[null,null,"OCC0188 Business fire safety advisor"]
[null,null,"OCC0593 Community safety advisor"]
[null,null,"OCC0386 Custody and detention officer"]
[null,null,"OCC0483 Emergency service contact handling"]
[null,null,"OCC0486 Operational firefighter"]
[null,null,"OCC0550 Safety, health and environment technician"]
[null,null,"OCC0330 Security first line manager"]
[null,null,"OCC0077 Advanced butcher"]
[null,null,"OCC0644 Advertising and media executive"]
[null,null,"OCC0056 Bid and proposal co-ordinator"]
[null,null,"OCC0071 Customer service specialist"]
[null,null,"OCC0168 Event assistant"]
[null,null,"OCC0887 Fundraiser"]
[null,null,"OCC0584 Funeral director"]
[null,null,"OCC0234 Housing and property management"]
[null,null,"OCC0115 IT technical salesperson"]
[null,null,"OCC1031 Multi-channel marketer"]
[null,null,"OCC0810 Procurement and supply assistant"]
[null,null,"OCC0326 Retail team leader"]
[null,null,"OCC0340 Travel consultant"]
[null,null,"OCC1007 Aviation flight operations coordinator"]
[null,null,"OCC0038 Aviation ground specialist"]
[null,null,"OCC0954 Aviation movement specialist"]
[null,null,"OCC0621 Boatmaster"]
[null,null,"OCC0558 Cabin crew"]
[null,null,"OCC0539 International freight forwarding specialist"]
[null,null,"OCC0842 Officer of the watch (near coastal)"]
[null,null,"OCC0544 Port agent"]
[null,null,"OCC1378 Rail infrastructure operator 2022"]
[null,null,"OCC0201 Supply chain practitioner (fast moving consumer good) (previously Operator Manager)"]
[null,null,"OCC0645 Train driver"]
[null,null,"OCC0647 Transport and warehouse operations supervisor"]
[null,null,"OCC1438 Transport scheduler"]
[null,null,"OCC0400 Small commercial vessel crewmember"]

{"sheet":"Preparation Table","index":5,"n_rows":588,"n_cols":7,"rows_kept":588,"cut":false,"hidden":true,"merged":[]}
["Pre Defined Area","Sub Area","Duty",null,null,"Partially","Fully"]
[{"$f":"_xlfn.UNIQUE('Source Data'!C2:C304)","v":"Please Select"},{"$f":"_xlfn.UNIQUE(_xlfn._xlws.FILTER('Source Data'!D2:D304,'Source Data'!C2:C304='Pre Defined Duties'!A11))","v":"Please select"},{"$f":"_xlfn.UNIQUE(_xlfn._xlws.FILTER('Source Data'!E2:E304,('Source Data'!C2:C304='Pre Defined Duties'!A11)*('Source Data'!D2:D304='Pre Defined Duties'!B11),\"\"))","v":"Please select"}]
["Adapting and Developing Exercise"]
["Coaching and Instruction"]
["Medical Servicing"]
["Motor Vehicle Maintenance"]
["Power, Electronics, Motors and Drives"]
["Sports Massage"]
["Yoga and Pilates"]
[]
[]
[]
[]
[]
[]
[]
[]
[]
[]
[]
[]
[]
[]
[]
[]
[]
["Pre Defined Area","Sub Area","Duty"]
[{"$f":"_xlfn.UNIQUE('Source Data'!C2:C304)","v":"Please Select"},{"$f":"_xlfn.UNIQUE(_xlfn._xlws.FILTER('Source Data'!$D$2:$D$304,'Source Data'!$C$2:$C$304='Pre Defined Duties'!A12))","v":"Please select"},{"$f":"_xlfn.UNIQUE(_xlfn._xlws.FILTER('Source Data'!$E$2:$E$304,('Source Data'!$C$2:C304='Pre Defined Duties'!A12)*('Source Data'!$D$2:$D$304='Pre Defined Duties'!B12),\"\"))","v":"Please select"}]
["Adapting and Developing Exercise"]
["Coaching and Instruction"]
["Medical Servicing"]
["Motor Vehicle Maintenance"]
["Power, Electronics, Motors and Drives"]
["Sports Massage"]
["Yoga and Pilates"]
[]
[]
[]
[]
[]
[]
[]
[]
[]
[]
[]
[]
[]
[]
[]
[]
[]
["Pre Defined Area","Sub Area","Duty"]
[{"$f":"_xlfn.UNIQUE('Source Data'!C2:C304)","v":"Please Select"},{"$f":"_xlfn.UNIQUE(_xlfn._xlws.FILTER('Source Data'!$D$2:$D$304,'Source Data'!$C$2:$C$304='Pre Defined Duties'!A13))","v":"Please select"},{"$f":"_xlfn.UNIQUE(_xlfn._xlws.FILTER('Source Data'!$E$2:$E$304,('Source Data'!$C$2:$C$304='Pre Defined Duties'!A13)*('Source Data'!$D$2:$D$304='Pre Defined Duties'!B13),\"\"))","v":"Please select"}]
["Adapting and Developing Exercise"]
["Coaching and Instruction"]
["Medical Servicing"]
["Motor Vehicle Maintenance"]
["Power, Electronics, Motors and Drives"]
["Sports Massage"]
["Yoga and Pilates"]
[]
[]
[]
[]
[]
[]
[]
[]
[]
[]
[]
[]
[]
[]
[]
[]
[]
["Pre Defined Area","Sub Area","Duty"]
[{"$f":"_xlfn.UNIQUE('Source Data'!$C$2:$C$304)","v":"Please Select"},{"$f":"_xlfn.UNIQUE(_xlfn._xlws.FILTER('Source Data'!$D$2:$D$304,'Source Data'!$C$2:$C$304='Pre Defined Duties'!A14))","v":"Please select"},{"$f":"_xlfn.UNIQUE(_xlfn._xlws.FILTER('Source Data'!$E$2:$E$304,('Source Data'!$C$2:$C$304='Pre Defined Duties'!A14)*('Source Data'!$D$2:$D$304='Pre Defined Duties'!B14),\"\"))","v":"Please select"}]
["Adapting and Developing Exercise"]
["Coaching and Instruction"]
["Medical Servicing"]
["Motor Vehicle Maintenance"]
["Power, Electronics, Motors and Drives"]
["Sports Massage"]
["Yoga and Pilates"]
[]
[]
[]
[]
[]
[]
[]
[]
[]
[]
[]
[]
[]
[]
[]
[]
[]
["Pre Defined Area","Sub Area","Duty"]
[{"$f":"_xlfn.UNIQUE('Source Data'!$C$2:$C$304)","v":"Please Select"},{"$f":"_xlfn.UNIQUE(_xlfn._xlws.FILTER('Source Data'!$D$2:$D$304,'Source Data'!$C$2:$C$304='Pre Defined Duties'!A15))","v":"Please select"},{"$f":"_xlfn.UNIQUE(_xlfn._xlws.FILTER('Source Data'!$E$2:$E$304,('Source Data'!$C$2:$C$304='Pre Defined Duties'!A15)*('Source Data'!$D$2:$D$304='Pre Defined Duties'!B15),\"\"))","v":"Please select"}]
["Adapting and Developing Exercise"]
["Coaching and Instruction"]
["Medical Servicing"]
["Motor Vehicle Maintenance"]
["Power, Electronics, Motors and Drives"]
["Sports Massage"]
["Yoga and Pilates"]
[]
[]
[]
[]
[]
[]
[]
[]
[]
[]
[]
[]
[]
[]
[]
[]
[]
["Pre Defined Area","Sub Area","Duty"]
[{"$f":"_xlfn.UNIQUE('Source Data'!$C$2:$C$304)","v":"Please Select"},{"$f":"_xlfn.UNIQUE(_xlfn._xlws.FILTER('Source Data'!$D$2:$D$304,'Source Data'!$C$2:$C$304='Pre Defined Duties'!A16))","v":"Please select"},{"$f":"_xlfn.UNIQUE(_xlfn._xlws.FILTER('Source Data'!$E$2:$E$304,('Source Data'!$C$2:$C$304='Pre Defined Duties'!A16)*('Source Data'!$D$2:$D$304='Pre Defined Duties'!B16),\"\"))","v":"Please select"}]
["Adapting and Developing Exercise"]
["Coaching and Instruction"]
["Medical Servicing"]
["Motor Vehicle Maintenance"]
["Power, Electronics, Motors and Drives"]
["Sports Massage"]
["Yoga and Pilates"]
[]
[]
[]
[]
[]
[]
[]
[]
[]
[]
[]
[]
[]
[]
[]
[]
[]
["Pre Defined Area","Sub Area","Duty"]
[{"$f":"_xlfn.UNIQUE('Source Data'!$C$2:$C$304)","v":"Please Select"},{"$f":"_xlfn.UNIQUE(_xlfn._xlws.FILTER('Source Data'!$D$2:$D$304,'Source Data'!$C$2:$C$304='Pre Defined Duties'!A17))","v":"Please select"},{"$f":"_xlfn.UNIQUE(_xlfn._xlws.FILTER('Source Data'!$E$2:$E$304,('Source Data'!$C$2:$C$304='Pre Defined Duties'!A17)*('Source Data'!$D$2:$D$304='Pre Defined Duties'!B17),\"\"))","v":"Please select"}]
["Adapting and Developing Exercise"]
["Coaching and Instruction"]
["Medical Servicing"]
["Motor Vehicle Maintenance"]
["Power, Electronics, Motors and Drives"]
["Sports Massage"]
["Yoga and Pilates"]
[]
[]
[]
[]
[]
[]
[]
[]
[]
[]
[]
[]
[]
[]
[]
["Pre Defined Area","Sub Area","Duty"]
[{"$f":"_xlfn.UNIQUE('Source Data'!$C$2:$C$304)","v":"Please Select"},{"$f":"_xlfn.UNIQUE(_xlfn._xlws.FILTER('Source Data'!$D$2:$D$304,'Source Data'!$C$2:$C$304='Pre Defined Duties'!A18))","v":"Please select"},{"$f":"_xlfn.UNIQUE(_xlfn._xlws.FILTER('Source Data'!$E$2:$E$304,('Source Data'!$C$2:$C$304='Pre Defined Duties'!A18)*('Source Data'!$D$2:$D$304='Pre Defined Duties'!B18),\"\"))","v":"Please select"}]
["Adapting and Developing Exercise"]
["Coaching and Instruction"]
["Medical Servicing"]
["Motor Vehicle Maintenance"]
["Power, Electronics, Motors and Drives"]
["Sports Massage"]
["Yoga and Pilates"]
[]
[]
[]
[]
[]
[]
[]
[]
[]
[]
[]
[]
[]
[]
[]
[]
[]
["Pre Defined Area","Sub Area","Duty"]
[{"$f":"_xlfn.UNIQUE('Source Data'!$C$2:$C$304)","v":"Please Select"},{"$f":"_xlfn.UNIQUE(_xlfn._xlws.FILTER('Source Data'!$D$2:$D$304,'Source Data'!$C$2:$C$304='Pre Defined Duties'!A19))","v":"Please select"},{"$f":"_xlfn.UNIQUE(_xlfn._xlws.FILTER('Source Data'!$E$2:$E$304,('Source Data'!$C$2:$C$304='Pre Defined Duties'!A19)*('Source Data'!$D$2:$D$304='Pre Defined Duties'!B19),\"\"))","v":"Please select"}]
["Adapting and Developing Exercise"]
["Coaching and Instruction"]
["Medical Servicing"]
["Motor Vehicle Maintenance"]
["Power, Electronics, Motors and Drives"]
["Sports Massage"]
["Yoga and Pilates"]
[]
[]
[]
[]
[]
[]
[]
[]
[]
[]
[]
[]
[]
[]
[]
[]
[]
["Pre Defined Area","Sub Area","Duty"]
[{"$f":"_xlfn.UNIQUE('Source Data'!$C$2:$C$304)","v":"Please Select"},{"$f":"_xlfn.UNIQUE(_xlfn._xlws.FILTER('Source Data'!$D$2:$D$304,'Source Data'!$C$2:$C$304='Pre Defined Duties'!A20))","v":"Please select"},{"$f":"_xlfn.UNIQUE(_xlfn._xlws.FILTER('Source Data'!$E$2:$E$304,('Source Data'!$C$2:$C$304='Pre Defined Duties'!A20)*('Source Data'!$D$2:$D$304='Pre Defined Duties'!B20),\"\"))","v":"Please select"}]
["Adapting and Developing Exercise"]
["Coaching and Instruction"]
["Medical Servicing"]
["Motor Vehicle Maintenance"]
["Power, Electronics, Motors and Drives"]
["Sports Massage"]
["Yoga and Pilates"]
[]
[]
[]
[]
[]
[]
[]
[]
[]
[]
[]
[]
[]
[]
[]
[]
[]
["Pre Defined Area","Sub Area","Duty"]
[{"$f":"_xlfn.UNIQUE('Source Data'!$C$2:$C$304)","v":"Please Select"},{"$f":"_xlfn.UNIQUE(_xlfn._xlws.FILTER('Source Data'!$D$2:$D$304,'Source Data'!$C$2:$C$304='Pre Defined Duties'!A21))","v":"Please select"},{"$f":"_xlfn.UNIQUE(_xlfn._xlws.FILTER('Source Data'!$E$2:$E$304,('Source Data'!$C$2:$C$304='Pre Defined Duties'!A21)*('Source Data'!$D$2:$D$304='Pre Defined Duties'!B21),\"\"))","v":"Please select"}]
["Adapting and Developing Exercise"]
["Coaching and Instruction"]
["Medical Servicing"]
["Motor Vehicle Maintenance"]
["Power, Electronics, Motors and Drives"]
["Sports Massage"]
["Yoga and Pilates"]
[]
[]
[]
[]
[]
[]
[]
[]
[]
[]
[]
[]
[]
[]
[]
[]
[]
["Pre Defined Area","Sub Area","Duty"]
[{"$f":"_xlfn.UNIQUE('Source Data'!$C$2:$C$304)","v":"Please Select"},{"$f":"_xlfn.UNIQUE(_xlfn._xlws.FILTER('Source Data'!$D$2:$D$304,'Source Data'!$C$2:$C$304='Pre Defined Duties'!A22))","v":"Please select"},{"$f":"_xlfn.UNIQUE(_xlfn._xlws.FILTER('Source Data'!$E$2:$E$304,('Source Data'!$C$2:$C$304='Pre Defined Duties'!A22)*('Source Data'!$D$2:$D$304='Pre Defined Duties'!B22),\"\"))","v":"Please select"}]
["Adapting and Developing Exercise"]
["Coaching and Instruction"]
["Medical Servicing"]
["Motor Vehicle Maintenance"]
["Power, Electronics, Motors and Drives"]
["Sports Massage"]
["Yoga and Pilates"]
[]
[]
[]
[]
[]
[]
[]
[]
[]
[]
[]
[]
[]
[]
[]
[]
[]
["Pre Defined Area","Sub Area","Duty"]
[{"$f":"_xlfn.UNIQUE('Source Data'!$C$2:$C$304)","v":"Please Select"},{"$f":"_xlfn.UNIQUE(_xlfn._xlws.FILTER('Source Data'!$D$2:$D$304,'Source Data'!$C$2:$C$304='Pre Defined Duties'!A23))","v":"Please select"},{"$f":"_xlfn.UNIQUE(_xlfn._xlws.FILTER('Source Data'!$E$2:$E$304,('Source Data'!$C$2:$C$304='Pre Defined Duties'!A23)*('Source Data'!$D$2:$D$304='Pre Defined Duties'!B23),\"\"))","v":"Please select"}]
["Adapting and Developing Exercise"]
["Coaching and Instruction"]
["Medical Servicing"]
["Motor Vehicle Maintenance"]
["Power, Electronics, Motors and Drives"]
["Sports Massage"]
["Yoga and Pilates"]
[]
[]
[]
[]
[]
[]
[]
[]
[]
[]
[]
[]
[]
[]
[]
[]
[]
["Pre Defined Area","Sub Area","Duty"]
[{"$f":"_xlfn.UNIQUE('Source Data'!$C$2:$C$304)","v":"Please Select"},{"$f":"_xlfn.UNIQUE(_xlfn._xlws.FILTER('Source Data'!$D$2:$D$304,'Source Data'!$C$2:$C$304='Pre Defined Duties'!A24))","v":"Please select"},{"$f":"_xlfn.UNIQUE(_xlfn._xlws.FILTER('Source Data'!$E$2:$E$304,('Source Data'!$C$2:$C$304='Pre Defined Duties'!A24)*('Source Data'!$D$2:$D$304='Pre Defined Duties'!B24),\"\"))","v":"Please select"}]
["Adapting and Developing Exercise"]
["Coaching and Instruction"]
["Medical Servicing"]
["Motor Vehicle Maintenance"]
["Power, Electronics, Motors and Drives"]
["Sports Massage"]
["Yoga and Pilates"]
[]
[]
[]
[]
[]
[]
[]
[]
[]
[]
[]
[]
[]
[]
[]
[]
[]
["Pre Defined Area","Sub Area","Duty"]
[{"$f":"_xlfn.UNIQUE('Source Data'!$C$2:$C$304)","v":"Please Select"},{"$f":"_xlfn.UNIQUE(_xlfn._xlws.FILTER('Source Data'!$D$2:$D$304,'Source Data'!$C$2:$C$304='Pre Defined Duties'!A25))","v":"Please select"},{"$f":"_xlfn.UNIQUE(_xlfn._xlws.FILTER('Source Data'!$E$2:$E$304,('Source Data'!$C$2:$C$304='Pre Defined Duties'!A25)*('Source Data'!$D$2:$D$304='Pre Defined Duties'!B25),\"\"))","v":"Please select"}]
["Adapting and Developing Exercise"]
["Coaching and Instruction"]
["Medical Servicing"]
["Motor Vehicle Maintenance"]
["Power, Electronics, Motors and Drives"]
["Sports Massage"]
["Yoga and Pilates"]
[]
[]
[]
[]
[]
[]
[]
[]
[]
[]
[]
[]
[]
[]
[]
[]
["Pre Defined Area","Sub Area","Duty"]
[{"$f":"_xlfn.UNIQUE('Source Data'!$C$2:$C$304)","v":"Please Select"},{"$f":"_xlfn.UNIQUE(_xlfn._xlws.FILTER('Source Data'!$D$2:$D$304,'Source Data'!$C$2:$C$304='Pre Defined Duties'!A26))","v":"Please select"},{"$f":"_xlfn.UNIQUE(_xlfn._xlws.FILTER('Source Data'!$E$2:$E$304,('Source Data'!$C$2:$C$304='Pre Defined Duties'!A26)*('Source Data'!$D$2:$D$304='Pre Defined Duties'!B26),\"\"))","v":"Please select"}]
["Adapting and Developing Exercise"]
["Coaching and Instruction"]
["Medical Servicing"]
["Motor Vehicle Maintenance"]
["Power, Electronics, Motors and Drives"]
["Sports Massage"]
["Yoga and Pilates"]
[]
[]
[]
[]
[]
[]
[]
[]
[]
[]
[]
[]
[]
[]
[]
["Pre Defined Area","Sub Area","Duty"]
[{"$f":"_xlfn.UNIQUE('Source Data'!$C$2:$C$304)","v":"Please Select"},{"$f":"_xlfn.UNIQUE(_xlfn._xlws.FILTER('Source Data'!$D$2:$D$304,'Source Data'!$C$2:$C$304='Pre Defined Duties'!A27))","v":"Please select"},{"$f":"_xlfn.UNIQUE(_xlfn._xlws.FILTER('Source Data'!$E$2:$E$304,('Source Data'!$C$2:$C$304='Pre Defined Duties'!A27)*('Source Data'!$D$2:$D$304='Pre Defined Duties'!B27),\"\"))","v":"Please select"}]
["Adapting and Developing Exercise"]
["Coaching and Instruction"]
["Medical Servicing"]
["Motor Vehicle Maintenance"]
["Power, Electronics, Motors and Drives"]
["Sports Massage"]
["Yoga and Pilates"]
[]
[]
[]
[]
[]
[]
[]
[]
[]
[]
[]
[]
[]
[]
[]
["Pre Defined Area","Sub Area","Duty"]
[{"$f":"_xlfn.UNIQUE('Source Data'!$C$2:$C$304)","v":"Please Select"},{"$f":"_xlfn.UNIQUE(_xlfn._xlws.FILTER('Source Data'!$D$2:$D$304,'Source Data'!$C$2:$C$304='Pre Defined Duties'!A28))","v":"Please select"},{"$f":"_xlfn.UNIQUE(_xlfn._xlws.FILTER('Source Data'!$E$2:$E$304,('Source Data'!$C$2:$C$304='Pre Defined Duties'!A28)*('Source Data'!$D$2:$D$304='Pre Defined Duties'!B28),\"\"))","v":"Please select"}]
["Adapting and Developing Exercise"]
["Coaching and Instruction"]
["Medical Servicing"]
["Motor Vehicle Maintenance"]
["Power, Electronics, Motors and Drives"]
["Sports Massage"]
["Yoga and Pilates"]
[]
[]
[]
[]
[]
[]
[]
[]
[]
[]
[]
[]
[]
[]
[]
["Pre Defined Area","Sub Area","Duty"]
[{"$f":"_xlfn.UNIQUE('Source Data'!$C$2:$C$304)","v":"Please Select"},{"$f":"_xlfn.UNIQUE(_xlfn._xlws.FILTER('Source Data'!$D$2:$D$304,'Source Data'!$C$2:$C$304='Pre Defined Duties'!A29))","v":"Please select"},{"$f":"_xlfn.UNIQUE(_xlfn._xlws.FILTER('Source Data'!$E$2:$E$304,('Source Data'!$C$2:$C$304='Pre Defined Duties'!A29)*('Source Data'!$D$2:$D$304='Pre Defined Duties'!B29),\"\"))","v":"Please select"}]
["Adapting and Developing Exercise"]
["Coaching and Instruction"]
["Medical Servicing"]
["Motor Vehicle Maintenance"]
["Power, Electronics, Motors and Drives"]
["Sports Massage"]
["Yoga and Pilates"]
[]
[]
[]
[]
[]
[]
[]
[]
[]
[]
[]
[]
[]
[]
[]
["Pre Defined Area","Sub Area","Duty"]
[{"$f":"_xlfn.UNIQUE('Source Data'!$C$2:$C$304)","v":"Please Select"},{"$f":"_xlfn.UNIQUE(_xlfn._xlws.FILTER('Source Data'!$D$2:$D$304,'Source Data'!$C$2:$C$304='Pre Defined Duties'!A30))","v":"Please select"},{"$f":"_xlfn.UNIQUE(_xlfn._xlws.FILTER('Source Data'!$E$2:$E$304,('Source Data'!$C$2:$C$304='Pre Defined Duties'!A30)*('Source Data'!$D$2:$D$304='Pre Defined Duties'!B30),\"\"))","v":"Please select"}]
["Adapting and Developing Exercise"]
["Coaching and Instruction"]
["Medical Servicing"]
["Motor Vehicle Maintenance"]
["Power, Electronics, Motors and Drives"]
["Sports Massage"]
["Yoga and Pilates"]
[]
[]
[]
[]
[]
[]
[]
[]
[]
[]
[]
[]
[]
[]
[]
["Pre Defined Area","Sub Area","Duty"]
[{"$f":"_xlfn.UNIQUE('Source Data'!$C$2:$C$304)","v":"Please Select"},{"$f":"_xlfn.UNIQUE(_xlfn._xlws.FILTER('Source Data'!$D$2:$D$304,'Source Data'!$C$2:$C$304='Pre Defined Duties'!A31))","v":"Please select"},{"$f":"_xlfn.UNIQUE(_xlfn._xlws.FILTER('Source Data'!$E$2:$E$304,('Source Data'!$C$2:$C$304='Pre Defined Duties'!A31)*('Source Data'!$D$2:$D$304='Pre Defined Duties'!B31),\"\"))","v":"Please select"}]
["Adapting and Developing Exercise"]
["Coaching and Instruction"]
["Medical Servicing"]
["Motor Vehicle Maintenance"]
["Power, Electronics, Motors and Drives"]
["Sports Massage"]
["Yoga and Pilates"]
[]
[]
[]
[]
[]
[]
[]
[]
[]
[]
[]
[]
[]
[]
[]
["Pre Defined Area","Sub Area","Duty"]
[{"$f":"_xlfn.UNIQUE('Source Data'!$C$2:$C$304)","v":"Please Select"},{"$f":"_xlfn.UNIQUE(_xlfn._xlws.FILTER('Source Data'!$D$2:$D$304,'Source Data'!$C$2:$C$304='Pre Defined Duties'!A32))","v":"Please select"},{"$f":"_xlfn.UNIQUE(_xlfn._xlws.FILTER('Source Data'!$E$2:$E$304,('Source Data'!$C$2:$C$304='Pre Defined Duties'!A32)*('Source Data'!$D$2:$D$304='Pre Defined Duties'!B32),\"\"))","v":"Please select"}]
["Adapting and Developing Exercise"]
["Coaching and Instruction"]
["Medical Servicing"]
["Motor Vehicle Maintenance"]
["Power, Electronics, Motors and Drives"]
["Sports Massage"]
["Yoga and Pilates"]
[]
[]
[]
[]
[]
[]
[]
[]
[]
[]
[]
[]
[]
[]
[]
["Pre Defined Area","Sub Area","Duty"]
[{"$f":"_xlfn.UNIQUE('Source Data'!$C$2:$C$304)","v":"Please Select"},{"$f":"_xlfn.UNIQUE(_xlfn._xlws.FILTER('Source Data'!$D$2:$D$304,'Source Data'!$C$2:$C$304='Pre Defined Duties'!A33))","v":"Please select"},{"$f":"_xlfn.UNIQUE(_xlfn._xlws.FILTER('Source Data'!$E$2:$E$304,('Source Data'!$C$2:$C$304='Pre Defined Duties'!A33)*('Source Data'!$D$2:$D$304='Pre Defined Duties'!B33),\"\"))","v":"Please select"}]
["Adapting and Developing Exercise"]
["Coaching and Instruction"]
["Medical Servicing"]
["Motor Vehicle Maintenance"]
["Power, Electronics, Motors and Drives"]
["Sports Massage"]
["Yoga and Pilates"]
[]
[]
[]
[]
[]
[]
[]
[]
[]
[]
[]
[]
[]
[]
[]
["Pre Defined Area","Sub Area","Duty"]
[{"$f":"_xlfn.UNIQUE('Source Data'!$C$2:$C$304)","v":"Please Select"},{"$f":"_xlfn.UNIQUE(_xlfn._xlws.FILTER('Source Data'!$D$2:$D$304,'Source Data'!$C$2:$C$304='Pre Defined Duties'!A34))","v":"Please select"},{"$f":"_xlfn.UNIQUE(_xlfn._xlws.FILTER('Source Data'!$E$2:$E$304,('Source Data'!$C$2:$C$304='Pre Defined Duties'!A34)*('Source Data'!$D$2:$D$304='Pre Defined Duties'!B34),\"\"))","v":"Please select"}]
["Adapting and Developing Exercise"]
["Coaching and Instruction"]
["Medical Servicing"]
["Motor Vehicle Maintenance"]
["Power, Electronics, Motors and Drives"]
["Sports Massage"]
["Yoga and Pilates"]